Workbook

Sheet 10. RTSR - Current Rates
A1: Back to Index | B1: Back to Index | BA1: 1
B2: INCENTIVE REGULATION MODEL FOR 2018 FILERS
B13: Columns F and G must match the data from the most recent RRR filing. Rates have been imported from Tab 2. As well, the Loss Factor has been imported from "Model Specs" tab. If the data needs to be modified, please make the necessary adjustments and note the changes in your manager's summary.
B15: Rate Class | C15: Rate Description | D15: Unit | E15: Rate | F15: Non-Loss Adjusted Metered kWh | G15: Non-Loss Adjusted Metered kW | H15: Applicable Loss Factor | I15: Loss Adjusted Billed kWh
A16: R_TN | B16: RESIDENTIAL SERVICE CLASSIFICATION | C16: Retail Transmission Rate – Network Service Rate | D16: $/kWh | E16: 0.007442559704 | F16: 1537580329 | G16: 0 | H16: 1.0379 | I16: =F16*H16 -> 1595854623
A17: R_TC | B17: RESIDENTIAL SERVICE CLASSIFICATION | C17: Retail Transmission Rate – Line and Transformation Connection Service Rate | D17: $/kWh | E17: 0.006824313932 | F17: =F16 -> 1537580329 | G17: 0 | H17: =H16 -> 1.0379 | I17: =F17*H17 -> 1595854623
A18: GSL_TN | B18: GENERAL SERVICE LESS THAN 50 kW SERVICE CLASSIFICATION | C18: Retail Transmission Rate – Network Service Rate | D18: $/kWh | E18: 0.006537383521 | F18: 558828431 | G18: 0 | H18: =H17 -> 1.0379 | I18: 580008028.5
A19: GSL_TC | B19: GENERAL SERVICE LESS THAN 50 kW SERVICE CLASSIFICATION | C19: Retail Transmission Rate – Line and Transformation Connection Service Rate | D19: $/kWh | E19: 0.006130315898 | F19: =F18 -> 558828431 | G19: 0 | H19: 1.0379 | I19: 580008028.5
A20: GSG_TN | B20: GENERAL SERVICE GREATER THAN 50 kW SERVICE CLASSIFICATION | C20: Retail Transmission Rate – Network Service Rate | D20: $/kW | E20: 2.586892949 | F20: 1751908545 | G20: 4824433.383
A21: GSG_TC | B21: GENERAL SERVICE GREATER THAN 50 kW SERVICE CLASSIFICATION | C21: Retail Transmission Rate – Line and Transformation Connection Service Rate | D21: $/kW | E21: 2.453630023 | F21: =F20 -> 1751908545 | G21: =G20 -> 4824433.383
A22: LU_TN | B22: LARGE USE 1 SERVICE CLASSIFICATION | C22: Retail Transmission Rate – Network Service Rate | D22: $/kW | E22: 2.955098492 | F22: 220526376.8 | G22: 456125.738
A23: LU_TC | B23: LARGE USE 1 SERVICE CLASSIFICATION | C23: Retail Transmission Rate – Line and Transformation Connection Service Rate | D23: $/kW | E23: 2.819482653 | F23: =F22 -> 220526376.8 | G23: =G22 -> 456125.738
A24: LUDA_TN | B24: LARGE USE 2 SERVICE CLASSIFICATION | C24: Retail Transmission Rate – Network Service Rate – Interval Metered | D24: $/kW | E24: 2.955098508 | F24: 1050812632 | G24: 1982813.538
A25: LUDA_TC | B25: LARGE USE 2 SERVICE CLASSIFICATION | C25: Retail Transmission Rate – Line and Transformation Connection Service Rate – Interval Metered | D25: $/kW | E25: 2.819482651 | F25: =F24 -> 1050812632 | G25: =G24 -> 1982813.538
A26: USL_TN | B26: UNMETERED SCATTERED LOAD SERVICE CLASSIFICATION | C26: Retail Transmission Rate – Network Service Rate | D26: $/kWh | E26: 0.006637958128 | F26: 11347508.42 | G26: 0 | H26: =+H19 -> 1.0379 | I26: 11777578.99
A27: USL_TC | B27: UNMETERED SCATTERED LOAD SERVICE CLASSIFICATION | C27: Retail Transmission Rate – Line and Transformation Connection Service Rate | D27: $/kWh | E27: 0.006245982158 | F27: =F26 -> 11347508.42 | G27: =G26 -> 0 | H27: 1.0379 | I27: 11777578.99
A28: SEN_TN | B28: SENTINEL LIGHTING | C28: Retail Transmission Rate – Network Service Rate | D28: $/kW | E28: 2.14959205 | F28: 439954.0228 | G28: 946.9101177
A29: SEN_TC | B29: SENTINEL LIGHTING | C29: Retail Transmission Rate – Line and Transformation Connection Service Rate | D29: $/kW | E29: 1.974307862 | F29: =F28 -> 439954.0228 | G29: =G28 -> 946.9101177
A30: SL_TN | B30: STREET LIGHTING SERVICE CLASSIFICATION | C30: Retail Transmission Rate – Network Service Rate | D30: $/kW | E30: 2.036445282 | F30: 31193672.3 | G30: 87344.171
A31: SL_TC | B31: STREET LIGHTING SERVICE CLASSIFICATION | C31: Retail Transmission Rate – Line and Transformation Connection Service Rate | D31: $/kW | E31: 1.924919242 | F31: =F30 -> 31193672.3 | G31: =G30 -> 87344.171

Sheet 11. RTSR-UTRs & Sub-Tx
A1: Back to Index
B2: INCENTIVE REGULATION MODEL FOR 2018 FILERS
B12: Uniform Transmission Rates | C12: Unit | E12: 2017 | G12: 2018 | I12: 2019
B14: Rate Description | E14: Rate | G14: Rate | I14: Rate
B16: Network Service Rate | C16: kW | E16: 3.52 | F16: 1537580329 | G16: 3.61 | I16: 3.61
B18: Line Connection Service Rate | C18: kW | E18: 0.88 | F18: 558828431 | G18: 0.95 | H18: 0.95 | I18: 0.95
B20: Transformation Connection Service Rate | C20: kW | E20: 2.13 | F20: 1751908545 | G20: 2.34 | I20: 2.34
F22: 220526376.8
B23: Hydro One Sub-Transmission Rates | C23: Unit | E23: 2017 | G23: 2018 | I23: 2019
F26: 11347508.42
B27: Rate Description | E27: Rate | G27: Rate | I27: Rate
F28: 439954.0228
B29: Network Service Rate | C29: kW | E29: 3.3396 | F29: 3.1942 | G29: 3.1942 | I29: =G29 -> 3.1942
F30: 31193672.3
B31: Line Connection Service Rate | C31: kW | E31: 0.771 | G31: 0.771 | I31: =G31 -> 0.771
B33: Transformation Connection Service Rate | C33: kW | E33: 1.7493 | G33: 1.7493 | I33: =G33 -> 1.7493
B35: Both Line and Transformation Connection Service Rate | C35: kW | E35: 2.5504 | G35: =SUM(G33,G31) -> 2.5203 | I35: =G35 -> 2.5203
B38: If needed, add extra host here. (I) | C38: Unit | E38: 2016 | G38: 2017 | I38: 2018
B42: Rate Description | E42: Rate | G42: Rate | I42: Rate
B44: Network Service Rate | C44: kW
B46: Line Connection Service Rate | C46: kW
B48: Transformation Connection Service Rate | C48: kW
B50: Both Line and Transformation Connection Service Rate | C50: kW | E50: =E48+E46 -> 0 | G50: =G48+G46 -> 0 | I50: =I48+I46 -> 0
B53: If needed, add extra host here. (II) | C53: Unit | E53: 2016 | G53: 2017 | I53: 2018
B57: Rate Description | E57: Rate | G57: Rate | I57: Rate
B59: Network Service Rate | C59: kW
B61: Line Connection Service Rate | C61: kW
B63: Transformation Connection Service Rate | C63: kW
B65: Both Line and Transformation Connection Service Rate | C65: kW | E65: =E63+E61 -> 0 | G65: =G63+G61 -> 0 | I65: =I63+I61 -> 0
E67: Historical 2016 | G67: Current 2017 | I67: Forecast 2018
B68: Low Voltage Switchgear Credit (if applicable, enter as a negative value) | C68: $

Sheet 12. RTSR-Historic Wholesale
A1: Back to Index
B2: INCENTIVE REGULATION MODEL FOR 2018 FILERS
B13: In the green shaded cells, enter billing detail for wholesale transmission for the same reporting period as the billing determinants on Tab 10. For Hydro One Sub-transmission Rates, if you are charged a combined Line and Transformer connection rate, please ensure that both the Line Connection and Transformation Connection columns are completed. If any of the Hydro One Sub-transmission rates (column E, I and M) are highlighted in orange, please double check the billing data entered in "Units Billed" and "Amount" columns. The highlighted rates do not match the Hydro One Sub-transmission rates approved for that time period. If data has been entered correctly, please provide explanation for the discrepancy in rates.
B16: IESO | D16: Network | H16: Line Connection | L16: Transformation Connection | P16: Total Line
B17: Month | D17: Units Billed | E17: Rate | F17: Amount | H17: Units Billed | I17: Rate | J17: Amount | L17: Units Billed | M17: Rate | N17: Amount | P17: Amount
F18: 558828431
B19: January | D19: 726321 | E19: =IF(D19<>0,F19/D19,0) -> 3.66 | F19: 2658334.86 | H19: 720502 | I19: =IF(H19<>0,J19/H19,0) -> 0.87 | J19: 626836.74 | L19: 776674 | M19: =IF(L19<>0,N19/L19,0) -> 2.02 | N19: 1568881.48 | P19: =J19+N19 -> 2195718.22
B20: February | D20: 692790 | E20: =IF(D20<>0,F20/D20,0) -> 3.66 | F20: 2535611.4 | H20: 679676 | I20: 0.87 | J20: 591318.12 | L20: 743092 | M20: 2.02 | N20: 1501045.84 | P20: 2092363.96
B21: March | D21: 687896 | E21: =IF(D21<>0,F21/D21,0) -> 3.66 | F21: 2517699.36 | H21: 667736 | I21: 0.87 | J21: 580930.32 | L21: 730455 | M21: 2.02 | N21: 1475519.1 | P21: 2056449.42
B22: April | D22: 630448 | E22: 3.66 | F22: 2307439.68 | H22: 618488 | I22: 0.87 | J22: 538084.56 | L22: 670512 | M22: 2.02 | N22: 1354434.24 | P22: 1892518.8
B23: May | D23: 706554 | E23: 3.66 | F23: 2585987.64 | H23: 676531 | I23: 0.87 | J23: 588581.97 | L23: 737534 | M23: 2.02 | N23: 1489818.68 | P23: 2078400.65
B24: June | D24: 826904 | E24: 3.66 | F24: 3026468.64 | H24: 824900 | I24: 0.87 | J24: 717663 | L24: 887029 | M24: 2.02 | N24: 1791798.58 | P24: 2509461.58
B25: July | D25: 835416 | E25: 3.66 | F25: 3057622.56 | H25: 837044 | I25: 0.87 | J25: 728228.28 | L25: 899328 | M25: 2.02 | N25: 1816642.56 | P25: 2544870.84
B26: August | D26: 864110 | E26: 3.66 | F26: 3162642.6 | H26: 828034 | I26: 0.87 | J26: 720389.58 | L26: 889952 | M26: 2.02 | N26: 1797703.04 | P26: 2518092.62
B27: September | D27: 859782 | E27: 3.66 | F27: 3146802.12 | H27: 862883 | I27: 0.87 | J27: 750708.21 | L27: 926445 | M27: 2.02 | N27: 1871418.9 | P27: 2622127.11
B28: October | D28: 667485 | E28: 3.66 | F28: 2442995.1 | H28: 653380 | I28: 0.87 | J28: 568440.6 | L28: 705043 | M28: 2.02 | N28: 1424186.86 | P28: 1992627.46
B29: November | D29: 683261 | E29: 3.52 | F29: 2405078.72 | H29: 669443 | I29: 0.88 | J29: 589109.84 | L29: 724061 | M29: 2.13 | N29: 1542249.93 | P29: 2131359.77
B30: December | D30: 711624 | E30: 3.52 | F30: 2504916.48 | H30: 704315 | I30: 0.88 | J30: 619797.2 | L30: 761653 | M30: 2.13 | N30: 1622320.89 | P30: 2242118.09
B32: Total | D32: =SUM(D19:D30) -> 8892591 | E32: =IF(D32<>0,F32/D32,0) -> 3.638039707 | F32: =SUM(F19:F30) -> 32351599.16 | H32: =SUM(H19:H30) -> 8742932 | I32: =IF(H32<>0,J32/H32,0) -> 0.8715712784 | J32: =SUM(J19:J30) -> 7620088.42 | L32: =SUM(L19:L30) -> 9451778 | M32: =IF(L32<>0,N32/L32,0) -> 2.037290772 | N32: =SUM(N19:N30) -> 19256020.1 | P32: =SUM(P19:P30) -> 26876108.52
B34: Hydro One | D34: Network | H34: Line Connection | L34: Transformation Connection | P34: Total Line
B36: Month | D36: Units Billed | E36: Rate | F36: Amount | H36: Units Billed | I36: Rate | J36: Amount | L36: Units Billed | M36: Rate | N36: Amount | P36: Amount
B38: January | D38: 59053.59 | E38: =IF(D38<>0,F38/D38,0) -> 3.1942 | F38: 188628.9772 | H38: 61101.74 | I38: =IF(H38<>0,J38/H38,0) -> 0.771 | J38: 47109.44154 | L38: 61101.74 | M38: =IF(L38<>0,N38/L38,0) -> 1.7493 | N38: 106885.2738 | P38: =J38+N38 -> 153994.7153
B39: February | D39: 57869.68 | E39: =IF(D39<>0,F39/D39,0) -> 3.1942 | F39: 184847.3319 | H39: 58718.36 | I39: 0.771 | J39: 45271.85556 | L39: 58718.36 | M39: 1.7493 | N39: 102716.0271 | P39: =J39+N39 -> 147987.8827
B40: March | D40: 71962.04 | E40: 3.1942 | F40: 229861.1482 | H40: 74593.08 | I40: 0.771 | J40: 57511.26468 | L40: 74593.08 | M40: 1.7493 | N40: 130485.6748 | P40: 187996.9395
B41: April | D41: 52961.8 | E41: 3.1942 | F41: 169170.5816 | H41: 54794.48 | I41: 0.771 | J41: 42246.54408 | L41: 54794.48 | M41: 1.7493 | N41: 95851.98386 | P41: 138098.5279
B42: May | D42: 59749.03 | E42: 3.1942 | F42: 190850.3516 | H42: 61496.35 | I42: 0.771 | J42: 47413.68585 | L42: 61496.35 | M42: 1.7493 | N42: 107575.5651 | P42: 154989.2509
B43: June | D43: 75966.43 | E43: 3.1942 | F43: 242651.9707 | H43: 77424.87 | I43: 0.771 | J43: 59694.57477 | L43: 77424.87 | M43: 1.7493 | N43: 135439.3251 | P43: 195133.8999
B44: July | D44: 77140.86 | E44: 3.1942 | F44: 246403.335 | H44: 77914.28 | I44: 0.771 | J44: 60071.90988 | L44: 77914.28 | M44: 1.7493 | N44: 136295.45 | P44: 196367.3599
B45: August | D45: 76718.52 | E45: 3.1942 | F45: 245054.2966 | H45: 77740.34 | I45: 0.771 | J45: 59937.80214 | L45: 77740.34 | M45: 1.7493 | N45: 135991.1768 | P45: 195928.9789
B46: September | D46: 81290.59 | E46: 3.1942 | F46: 259658.4026 | H46: 82774.6 | I46: 0.771 | J46: 63819.2166 | L46: 82774.6 | M46: 1.7493 | N46: 144797.6078 | P46: 208616.8244
B47: October | D47: 56696.36 | E47: 3.1942 | F47: 181099.5131 | H47: 58444.42 | I47: 0.771 | J47: 45060.64782 | L47: 58444.42 | M47: 1.7493 | N47: 102236.8239 | P47: 147297.4717
B48: November | D48: 55884.23 | E48: 3.1942 | F48: 178505.4075 | H48: 56811.26 | I48: 0.771 | J48: 43801.48146 | L48: 56811.26 | M48: 1.7493 | N48: 99379.93712 | P48: 143181.4186
B49: December | D49: 60159.21 | E49: 3.1942 | F49: 192160.5486 | H49: 60501.82 | I49: 0.771 | J49: 46646.90322 | L49: 60501.82 | M49: 1.7493 | N49: 105835.8337 | P49: 152482.7369
B51: Total | D51: =SUM(D38:D49) -> 785452.34 | E51: =IF(D51<>0,F51/D51,0) -> 3.1942 | F51: =SUM(F38:F49) -> 2508891.864 | H51: =SUM(H38:H49) -> 802315.6 | I51: =IF(H51<>0,J51/H51,0) -> 0.771 | J51: =SUM(J38:J49) -> 618585.3276 | L51: =SUM(L38:L49) -> 802315.6 | M51: =IF(L51<>0,N51/L51,0) -> 1.7493 | N51: =SUM(N38:N49) -> 1403490.679 | P51: =SUM(P38:P49) -> 2022076.007
B53: Add Extra Host Here (I) | D53: Network | H53: Line Connection | L53: Transformation Connection | P53: Total Line
B54: (if needed)
B55: Month | D55: Units Billed | E55: Rate | F55: Amount | H55: Units Billed | I55: Rate | J55: Amount | L55: Units Billed | M55: Rate | N55: Amount | P55: Amount
B57: January | E57: =IF(D57<>0,F57/D57,0) -> 0 | I57: =IF(H57<>0,J57/H57,0) -> 0 | M57: =IF(L57<>0,N57/L57,0) -> 0 | P57: =J57+N57 -> 0
B58: February | E58: 0 | I58: 0 | M58: 0 | P58: 0
B59: March | E59: 0 | I59: 0 | M59: 0 | P59: 0
B60: April | E60: 0 | I60: 0 | M60: 0 | P60: 0
B61: May | E61: 0 | I61: 0 | M61: 0 | P61: 0
B62: June | E62: 0 | I62: 0 | M62: 0 | P62: 0
B63: July | E63: 0 | I63: 0 | M63: 0 | P63: 0
B64: August | E64: 0 | I64: 0 | M64: 0 | P64: 0
B65: September | E65: 0 | I65: 0 | M65: 0 | P65: 0
B66: October | E66: 0 | I66: 0 | M66: 0 | P66: 0
B67: November | E67: 0 | I67: 0 | M67: 0 | P67: 0
B68: December | E68: 0 | I68: 0 | M68: 0 | P68: 0
B70: Total | D70: =SUM(D57:D68) -> 0 | E70: =IF(D70<>0,F70/D70,0) -> 0 | F70: =SUM(F57:F68) -> 0 | H70: =SUM(H57:H68) -> 0 | I70: =IF(H70<>0,J70/H70,0) -> 0 | J70: =SUM(J57:J68) -> 0 | L70: =SUM(L57:L68) -> 0 | M70: =IF(L70<>0,N70/L70,0) -> 0 | N70: =SUM(N57:N68) -> 0 | P70: =SUM(P57:P68) -> 0
B72: Add Extra Host Here (II) | D72: Network | H72: Line Connection | L72: Transformation Connection | P72: Total Line
B73: (if needed)
B74: Month | D74: Units Billed | E74: Rate | F74: Amount | H74: Units Billed | I74: Rate | J74: Amount | L74: Units Billed | M74: Rate | N74: Amount | P74: Amount
B76: January | E76: =IF(D76<>0,F76/D76,0) -> 0 | I76: =IF(H76<>0,J76/H76,0) -> 0 | M76: =IF(L76<>0,N76/L76,0) -> 0 | P76: =J76+N76 -> 0
B77: February | E77: 0 | I77: 0 | M77: 0 | P77: 0
B78: March | E78: 0 | I78: 0 | M78: 0 | P78: 0
B79: April | E79: 0 | I79: 0 | M79: 0 | P79: 0
B80: May | E80: 0 | I80: 0 | M80: 0 | P80: 0
B81: June | E81: 0 | I81: 0 | M81: 0 | P81: 0
B82: July | E82: 0 | I82: 0 | M82: 0 | P82: 0
B83: August | E83: 0 | I83: 0 | M83: 0 | P83: 0
B84: September | E84: 0 | I84: 0 | M84: 0 | P84: 0
B85: October | E85: 0 | I85: 0 | M85: 0 | P85: 0
B86: November | E86: 0 | I86: 0 | M86: 0 | P86: 0
B87: December | E87: 0 | I87: 0 | M87: 0 | P87: 0
B89: Total | D89: =SUM(D76:D87) -> 0 | E89: =IF(D89<>0,F89/D89,0) -> 0 | F89: =SUM(F76:F87) -> 0 | H89: =SUM(H76:H87) -> 0 | I89: =IF(H89<>0,J89/H89,0) -> 0 | J89: =SUM(J76:J87) -> 0 | L89: =SUM(L76:L87) -> 0 | M89: =IF(L89<>0,N89/L89,0) -> 0 | N89: =SUM(N76:N87) -> 0 | P89: =SUM(P76:P87) -> 0
B91: Total | D91: Network | H91: Line Connection | L91: Transformation Connection | P91: Total Line
B93: Month | D93: Units Billed | E93: Rate | F93: Amount | H93: Units Billed | I93: Rate | J93: Amount | L93: Units Billed | M93: Rate | N93: Amount | P93: Amount
B95: January | D95: =D19+D38+D57+D76 -> 785374.59 | E95: =IF(D95<>0,F95/D95,0) -> 3.624975742 | F95: =F19+F38+F57+F76 -> 2846963.837 | H95: =H19+H38+H57+H76 -> 781603.74 | I95: =IF(H95<>0,J95/H95,0) -> 0.8622606918 | J95: =J19+J38+J57+J76 -> 673946.1815 | L95: =L19+L38+L57+L76 -> 837775.74 | M95: =IF(L95<>0,N95/L95,0) -> 2.000256959 | N95: =N19+N38+N57+N76 -> 1675766.754 | P95: =J95+N95 -> 2349712.935
B96: February | D96: =D20+D39+D58+D77 -> 750659.68 | E96: =IF(D96<>0,F96/D96,0) -> 3.624090656 | F96: =F20+F39+F58+F77 -> 2720458.732 | H96: =H20+H39+H58+H77 -> 738394.36 | I96: 0.8621273537 | J96: =J20+J39+J58+J77 -> 636589.9756 | L96: =L20+L39+L58+L77 -> 801810.36 | M96: 2.000176036 | N96: =N20+N39+N58+N77 -> 1603761.867 | P96: 2240351.843
B97: March | D97: 759858.04 | E97: 3.615886605 | F97: 2747560.508 | H97: 742329.08 | I97: 0.860051966 | J97: 638441.5847 | L97: 805048.08 | M97: 1.994917838 | N97: 1606004.775 | P97: 2244446.36
B98: April | D98: 683409.8 | E98: 3.623902176 | F98: 2476610.262 | H98: 673282.48 | I98: 0.8619429754 | J98: 580331.1041 | L98: 725306.48 | M98: 1.99954952 | N98: 1450286.224 | P98: 2030617.328
B99: May | D99: 766303.03 | E99: 3.623681341 | F99: 2776837.992 | H99: 738027.35 | I99: 0.8617507953 | J99: 635995.6559 | L99: 799030.35 | M99: 1.99916592 | N99: 1597394.245 | P99: 2233389.901
B100: June | D100: 902870.43 | E100: 3.620808149 | F100: 3269120.611 | H100: 902324.87 | I100: 0.861505208 | J100: 777357.5748 | L100: 964453.87 | M100: 1.998268621 | N100: 1927237.905 | P100: 2704595.48
B101: July | D101: 912556.86 | E101: 3.620624686 | F101: 3304025.895 | H101: 914958.28 | I101: 0.861569546 | J101: 788300.1899 | L101: 977242.28 | M101: 1.998417434 | N101: 1952938.01 | P101: 2741238.2
B102: August | D102: 940828.52 | E102: 3.622017003 | F102: 3407696.897 | H102: 905774.34 | I102: 0.8615030783 | J102: 780327.3821 | L102: 967692.34 | M102: 1.998253098 | N102: 1933694.217 | P102: 2714021.599
B103: September | D103: 941072.59 | E103: 3.61976383 | F103: 3406460.523 | H103: 945657.6 | I103: 0.8613344054 | J103: 814527.4266 | L103: 1009219.6 | M103: 1.997797613 | N103: 2016216.508 | P103: 2830743.934
B104: October | D104: 724181.36 | E104: 3.623532389 | F104: 2624094.613 | H104: 711824.42 | I104: 0.8618715944 | J104: 613501.2478 | L104: 763487.42 | M104: 1.999278107 | N104: 1526423.684 | P104: 2139924.932
B105: November | D105: 739145.23 | E105: 3.495367382 | F105: 2583584.127 | H105: 726254.26 | I105: 0.8714734719 | J105: 632911.3215 | L105: 780872.26 | M105: 2.102302708 | N105: 1641629.867 | P105: 2274541.189
B106: December | D106: 771783.21 | E106: 3.494604435 | F106: 2697077.029 | H106: 764816.82 | I106: 0.8713774146 | J106: 666444.1032 | L106: 822154.82 | M106: 2.101984543 | N106: 1728156.724 | P106: 2394600.827
B108: Total | D108: =SUM(D95:D106) -> 9678043.34 | E108: =IF(D108<>0,F108/D108,0) -> 3.602018487 | F108: =SUM(F95:F106) -> 34860491.02 | H108: =SUM(H95:H106) -> 9545247.6 | I108: =IF(H108<>0,J108/H108,0) -> 0.8631178669 | J108: =SUM(J95:J106) -> 8238673.748 | L108: =SUM(L95:L106) -> 10254093.6 | M108: =IF(L108<>0,N108/L108,0) -> 2.014757382 | N108: =SUM(N95:N106) -> 20659510.78 | P108: =SUM(P95:P106) -> 28898184.53
N110: Low Voltage Switchgear Credit (if applicable) | P110: ='11. RTSR-UTRs & Sub-Tx'!E68 -> 0
N112: Total including deduction for Low Voltage Switchgear Credit | P112: =P108+P110 -> 28898184.53

Sheet 13. RTSR-Current Wholesale
A1: Back to Index
B2: INCENTIVE REGULATION MODEL FOR 2018 FILERS
B13: The purpose of this sheet is to calculate the expected billing when current 2017 Uniform Transmission Rates are applied against historical 2016 transmission units.
B16: IESO | D16: Network | H16: Line Connection | L16: Transformation Connection | P16: Total Line
B18: Month | D18: Units Billed | E18: Rate | F18: 558828431 | H18: Units Billed | I18: Rate | J18: Amount | L18: Units Billed | M18: Rate | N18: Amount | P18: Amount
B20: January | D20: ='12. RTSR-Historic Wholesale'!D19 -> 726321 | E20: ='11. RTSR-UTRs & Sub-Tx'!G16 -> 3.61 | F20: =+E20*D20 -> 2622018.81 | H20: ='12. RTSR-Historic Wholesale'!H19 -> 720502 | I20: ='11. RTSR-UTRs & Sub-Tx'!G18 -> 0.95 | J20: =H20*I20 -> 684476.9 | L20: ='12. RTSR-Historic Wholesale'!L19 -> 776674 | M20: ='11. RTSR-UTRs & Sub-Tx'!G20 -> 2.34 | N20: =L20*M20 -> 1817417.16 | P20: =J20+N20 -> 2501894.06
B21: February | D21: ='12. RTSR-Historic Wholesale'!D20 -> 692790 | E21: =E20 -> 3.61 | F21: =+E21*D21 -> 2500971.9 | H21: ='12. RTSR-Historic Wholesale'!H20 -> 679676 | I21: =I20 -> 0.95 | J21: =H21*I21 -> 645692.2 | L21: ='12. RTSR-Historic Wholesale'!L20 -> 743092 | M21: =M20 -> 2.34 | N21: =L21*M21 -> 1738835.28 | P21: 2384527.48
B22: March | D22: ='12. RTSR-Historic Wholesale'!D21 -> 687896 | E22: =E21 -> 3.61 | F22: 2483304.56 | H22: ='12. RTSR-Historic Wholesale'!H21 -> 667736 | I22: =I21 -> 0.95 | J22: 634349.2 | L22: ='12. RTSR-Historic Wholesale'!L21 -> 730455 | M22: =M21 -> 2.34 | N22: 1709264.7 | P22: 2343613.9
B23: April | D23: ='12. RTSR-Historic Wholesale'!D22 -> 630448 | E23: 3.61 | F23: 2275917.28 | H23: ='12. RTSR-Historic Wholesale'!H22 -> 618488 | I23: 0.95 | J23: 587563.6 | L23: ='12. RTSR-Historic Wholesale'!L22 -> 670512 | M23: 2.34 | N23: 1568998.08 | P23: 2156561.68
B24: May | D24: ='12. RTSR-Historic Wholesale'!D23 -> 706554 | E24: 3.61 | F24: 2550659.94 | H24: ='12. RTSR-Historic Wholesale'!H23 -> 676531 | I24: 0.95 | J24: 642704.45 | L24: ='12. RTSR-Historic Wholesale'!L23 -> 737534 | M24: 2.34 | N24: 1725829.56 | P24: 2368534.01
B25: June | D25: ='12. RTSR-Historic Wholesale'!D24 -> 826904 | E25: 3.61 | F25: 2985123.44 | H25: ='12. RTSR-Historic Wholesale'!H24 -> 824900 | I25: 0.95 | J25: 783655 | L25: ='12. RTSR-Historic Wholesale'!L24 -> 887029 | M25: 2.34 | N25: 2075647.86 | P25: 2859302.86
B26: July | D26: ='12. RTSR-Historic Wholesale'!D25 -> 835416 | E26: 3.61 | F26: 3015851.76 | H26: ='12. RTSR-Historic Wholesale'!H25 -> 837044 | I26: 0.95 | J26: 795191.8 | L26: ='12. RTSR-Historic Wholesale'!L25 -> 899328 | M26: 2.34 | N26: 2104427.52 | P26: 2899619.32
B27: August | D27: ='12. RTSR-Historic Wholesale'!D26 -> 864110 | E27: 3.61 | F27: 3119437.1 | H27: ='12. RTSR-Historic Wholesale'!H26 -> 828034 | I27: 0.95 | J27: 786632.3 | L27: ='12. RTSR-Historic Wholesale'!L26 -> 889952 | M27: 2.34 | N27: 2082487.68 | P27: 2869119.98
B28: September | D28: ='12. RTSR-Historic Wholesale'!D27 -> 859782 | E28: 3.61 | F28: 3103813.02 | H28: ='12. RTSR-Historic Wholesale'!H27 -> 862883 | I28: 0.95 | J28: 819738.85 | L28: ='12. RTSR-Historic Wholesale'!L27 -> 926445 | M28: 2.34 | N28: 2167881.3 | P28: 2987620.15
B29: October | D29: ='12. RTSR-Historic Wholesale'!D28 -> 667485 | E29: 3.61 | F29: 2409620.85 | H29: ='12. RTSR-Historic Wholesale'!H28 -> 653380 | I29: 0.95 | J29: 620711 | L29: ='12. RTSR-Historic Wholesale'!L28 -> 705043 | M29: 2.34 | N29: 1649800.62 | P29: 2270511.62
B30: November | D30: ='12. RTSR-Historic Wholesale'!D29 -> 683261 | E30: 3.61 | F30: 2466572.21 | H30: ='12. RTSR-Historic Wholesale'!H29 -> 669443 | I30: 0.95 | J30: 635970.85 | L30: ='12. RTSR-Historic Wholesale'!L29 -> 724061 | M30: 2.34 | N30: 1694302.74 | P30: 2330273.59
B31: December | D31: ='12. RTSR-Historic Wholesale'!D30 -> 711624 | E31: 3.61 | F31: 2568962.64 | H31: ='12. RTSR-Historic Wholesale'!H30 -> 704315 | I31: 0.95 | J31: 669099.25 | L31: ='12. RTSR-Historic Wholesale'!L30 -> 761653 | M31: 2.34 | N31: 1782268.02 | P31: 2451367.27
B33: Total | D33: =SUM(D20:D31) -> 8892591 | E33: =IF(D33<>0,F33/D33,0) -> 3.61 | F33: =SUM(F20:F31) -> 32102253.51 | H33: =SUM(H20:H31) -> 8742932 | I33: =IF(H33<>0,J33/H33,0) -> 0.95 | J33: =SUM(J20:J31) -> 8305785.4 | L33: =SUM(L20:L31) -> 9451778 | M33: =IF(L33<>0,N33/L33,0) -> 2.34 | N33: =SUM(N20:N31) -> 22117160.52 | P33: =SUM(P20:P31) -> 30422945.92
B35: Hydro One | D35: Network | H35: Line Connection | L35: Transformation Connection | P35: Total Line
B37: Month | D37: Units Billed | E37: Rate | F37: Amount | H37: Units Billed | I37: Rate | J37: Amount | L37: Units Billed | M37: Rate | N37: Amount | P37: Amount
B39: January | D39: ='12. RTSR-Historic Wholesale'!D38 -> 59053.59 | E39: ='11. RTSR-UTRs & Sub-Tx'!G29 -> 3.1942 | F39: =D39*E39 -> 188628.9772 | H39: ='12. RTSR-Historic Wholesale'!H38 -> 61101.74 | I39: ='11. RTSR-UTRs & Sub-Tx'!G31 -> 0.771 | J39: =H39*I39 -> 47109.44154 | L39: ='12. RTSR-Historic Wholesale'!L38 -> 61101.74 | M39: ='11. RTSR-UTRs & Sub-Tx'!G33 -> 1.7493 | N39: =L39*M39 -> 106885.2738 | P39: =J39+N39 -> 153994.7153
B40: February | D40: ='12. RTSR-Historic Wholesale'!D39 -> 57869.68 | E40: =E39 -> 3.1942 | F40: =D40*E40 -> 184847.3319 | H40: ='12. RTSR-Historic Wholesale'!H39 -> 58718.36 | I40: =I39 -> 0.771 | J40: =H40*I40 -> 45271.85556 | L40: ='12. RTSR-Historic Wholesale'!L39 -> 58718.36 | M40: =M39 -> 1.7493 | N40: =L40*M40 -> 102716.0271 | P40: 147987.8827
B41: March | D41: ='12. RTSR-Historic Wholesale'!D40 -> 71962.04 | E41: =E40 -> 3.1942 | F41: 229861.1482 | H41: ='12. RTSR-Historic Wholesale'!H40 -> 74593.08 | I41: =I40 -> 0.771 | J41: 57511.26468 | L41: ='12. RTSR-Historic Wholesale'!L40 -> 74593.08 | M41: =M40 -> 1.7493 | N41: 130485.6748 | P41: 187996.9395
B42: April | D42: ='12. RTSR-Historic Wholesale'!D41 -> 52961.8 | E42: 3.1942 | F42: 169170.5816 | H42: ='12. RTSR-Historic Wholesale'!H41 -> 54794.48 | I42: 0.771 | J42: 42246.54408 | L42: ='12. RTSR-Historic Wholesale'!L41 -> 54794.48 | M42: =M41 -> 1.7493 | N42: 95851.98386 | P42: 138098.5279
B43: May | D43: ='12. RTSR-Historic Wholesale'!D42 -> 59749.03 | E43: 3.1942 | F43: 190850.3516 | H43: ='12. RTSR-Historic Wholesale'!H42 -> 61496.35 | I43: 0.771 | J43: 47413.68585 | L43: ='12. RTSR-Historic Wholesale'!L42 -> 61496.35 | M43: 1.7493 | N43: 107575.5651 | P43: 154989.2509
B44: June | D44: ='12. RTSR-Historic Wholesale'!D43 -> 75966.43 | E44: 3.1942 | F44: 242651.9707 | H44: ='12. RTSR-Historic Wholesale'!H43 -> 77424.87 | I44: 0.771 | J44: 59694.57477 | L44: ='12. RTSR-Historic Wholesale'!L43 -> 77424.87 | M44: 1.7493 | N44: 135439.3251 | P44: 195133.8999
B45: July | D45: ='12. RTSR-Historic Wholesale'!D44 -> 77140.86 | E45: 3.1942 | F45: 246403.335 | H45: ='12. RTSR-Historic Wholesale'!H44 -> 77914.28 | I45: 0.771 | J45: 60071.90988 | L45: ='12. RTSR-Historic Wholesale'!L44 -> 77914.28 | M45: 1.7493 | N45: 136295.45 | P45: 196367.3599
B46: August | D46: ='12. RTSR-Historic Wholesale'!D45 -> 76718.52 | E46: 3.1942 | F46: 245054.2966 | H46: ='12. RTSR-Historic Wholesale'!H45 -> 77740.34 | I46: 0.771 | J46: 59937.80214 | L46: ='12. RTSR-Historic Wholesale'!L45 -> 77740.34 | M46: 1.7493 | N46: 135991.1768 | P46: 195928.9789
B47: September | D47: ='12. RTSR-Historic Wholesale'!D46 -> 81290.59 | E47: 3.1942 | F47: 259658.4026 | H47: ='12. RTSR-Historic Wholesale'!H46 -> 82774.6 | I47: 0.771 | J47: 63819.2166 | L47: ='12. RTSR-Historic Wholesale'!L46 -> 82774.6 | M47: 1.7493 | N47: 144797.6078 | P47: 208616.8244
B48: October | D48: ='12. RTSR-Historic Wholesale'!D47 -> 56696.36 | E48: 3.1942 | F48: 181099.5131 | H48: ='12. RTSR-Historic Wholesale'!H47 -> 58444.42 | I48: 0.771 | J48: 45060.64782 | L48: ='12. RTSR-Historic Wholesale'!L47 -> 58444.42 | M48: 1.7493 | N48: 102236.8239 | P48: 147297.4717
B49: November | D49: ='12. RTSR-Historic Wholesale'!D48 -> 55884.23 | E49: 3.1942 | F49: 178505.4075 | H49: ='12. RTSR-Historic Wholesale'!H48 -> 56811.26 | I49: 0.771 | J49: 43801.48146 | L49: ='12. RTSR-Historic Wholesale'!L48 -> 56811.26 | M49: 1.7493 | N49: 99379.93712 | P49: 143181.4186
B50: December | D50: ='12. RTSR-Historic Wholesale'!D49 -> 60159.21 | E50: 3.1942 | F50: 192160.5486 | H50: ='12. RTSR-Historic Wholesale'!H49 -> 60501.82 | I50: 0.771 | J50: 46646.90322 | L50: ='12. RTSR-Historic Wholesale'!L49 -> 60501.82 | M50: 1.7493 | N50: 105835.8337 | P50: 152482.7369
B52: Total | D52: =SUM(D39:D50) -> 785452.34 | E52: =IF(D52<>0,F52/D52,0) -> 3.1942 | F52: =SUM(F39:F50) -> 2508891.864 | H52: =SUM(H39:H50) -> 802315.6 | I52: =IF(H52<>0,J52/H52,0) -> 0.771 | J52: =SUM(J39:J50) -> 618585.3276 | L52: =SUM(L39:L50) -> 802315.6 | M52: =IF(L52<>0,N52/L52,0) -> 1.7493 | N52: =SUM(N39:N50) -> 1403490.679 | P52: =SUM(P39:P50) -> 2022076.007
B54: Add Extra Host Here (I) | D54: Network | H54: Line Connection | L54: Transformation Connection | P54: Total Line
B56: Month | D56: Units Billed | E56: Rate | F56: Amount | H56: Units Billed | I56: Rate | J56: Amount | L56: Units Billed | M56: Rate | N56: Amount | P56: Amount
B58: January | D58: ='12. RTSR-Historic Wholesale'!D57 -> 0 | E58: ='11. RTSR-UTRs & Sub-Tx'!G44 -> 0 | F58: =D58*E58 -> 0 | H58: ='12. RTSR-Historic Wholesale'!H57 -> 0 | I58: ='11. RTSR-UTRs & Sub-Tx'!G46 -> 0 | J58: =H58*I58 -> 0 | L58: ='12. RTSR-Historic Wholesale'!L57 -> 0 | M58: ='11. RTSR-UTRs & Sub-Tx'!G48 -> 0 | N58: =L58*M58 -> 0 | P58: =J58+N58 -> 0
B59: February | D59: ='12. RTSR-Historic Wholesale'!D58 -> 0 | E59: =E58 -> 0 | F59: =D59*E59 -> 0 | H59: ='12. RTSR-Historic Wholesale'!H58 -> 0 | I59: =I58 -> 0 | J59: =H59*I59 -> 0 | L59: ='12. RTSR-Historic Wholesale'!L58 -> 0 | M59: =M58 -> 0 | N59: =L59*M59 -> 0 | P59: 0
B60: March | D60: ='12. RTSR-Historic Wholesale'!D59 -> 0 | E60: =E59 -> 0 | F60: 0 | H60: ='12. RTSR-Historic Wholesale'!H59 -> 0 | I60: =I59 -> 0 | J60: 0 | L60: ='12. RTSR-Historic Wholesale'!L59 -> 0 | M60: =M59 -> 0 | N60: 0 | P60: 0
B61: April | D61: ='12. RTSR-Historic Wholesale'!D60 -> 0 | E61: 0 | F61: 0 | H61: ='12. RTSR-Historic Wholesale'!H60 -> 0 | I61: 0 | J61: 0 | L61: ='12. RTSR-Historic Wholesale'!L60 -> 0 | M61: 0 | N61: 0 | P61: 0
B62: May | D62: ='12. RTSR-Historic Wholesale'!D61 -> 0 | E62: 0 | F62: 0 | H62: ='12. RTSR-Historic Wholesale'!H61 -> 0 | I62: 0 | J62: 0 | L62: ='12. RTSR-Historic Wholesale'!L61 -> 0 | M62: 0 | N62: 0 | P62: 0
B63: June | D63: ='12. RTSR-Historic Wholesale'!D62 -> 0 | E63: 0 | F63: 0 | H63: ='12. RTSR-Historic Wholesale'!H62 -> 0 | I63: 0 | J63: 0 | L63: ='12. RTSR-Historic Wholesale'!L62 -> 0 | M63: 0 | N63: 0 | P63: 0
B64: July | D64: ='12. RTSR-Historic Wholesale'!D63 -> 0 | E64: 0 | F64: 0 | H64: ='12. RTSR-Historic Wholesale'!H63 -> 0 | I64: 0 | J64: 0 | L64: ='12. RTSR-Historic Wholesale'!L63 -> 0 | M64: 0 | N64: 0 | P64: 0
B65: August | D65: ='12. RTSR-Historic Wholesale'!D64 -> 0 | E65: 0 | F65: 0 | H65: ='12. RTSR-Historic Wholesale'!H64 -> 0 | I65: 0 | J65: 0 | L65: ='12. RTSR-Historic Wholesale'!L64 -> 0 | M65: 0 | N65: 0 | P65: 0
B66: September | D66: ='12. RTSR-Historic Wholesale'!D65 -> 0 | E66: 0 | F66: 0 | H66: ='12. RTSR-Historic Wholesale'!H65 -> 0 | I66: 0 | J66: 0 | L66: ='12. RTSR-Historic Wholesale'!L65 -> 0 | M66: 0 | N66: 0 | P66: 0
B67: October | D67: ='12. RTSR-Historic Wholesale'!D66 -> 0 | E67: 0 | F67: 0 | H67: ='12. RTSR-Historic Wholesale'!H66 -> 0 | I67: 0 | J67: 0 | L67: ='12. RTSR-Historic Wholesale'!L66 -> 0 | M67: 0 | N67: 0 | P67: 0
B68: November | D68: ='12. RTSR-Historic Wholesale'!D67 -> 0 | E68: 0 | F68: 0 | H68: ='12. RTSR-Historic Wholesale'!H67 -> 0 | I68: 0 | J68: 0 | L68: ='12. RTSR-Historic Wholesale'!L67 -> 0 | M68: 0 | N68: 0 | P68: 0
B69: December | D69: ='12. RTSR-Historic Wholesale'!D68 -> 0 | E69: 0 | F69: 0 | H69: ='12. RTSR-Historic Wholesale'!H68 -> 0 | I69: 0 | J69: 0 | L69: ='12. RTSR-Historic Wholesale'!L68 -> 0 | M69: 0 | N69: 0 | P69: 0
B71: Total | D71: =SUM(D58:D69) -> 0 | E71: =IF(D71<>0,F71/D71,0) -> 0 | F71: =SUM(F58:F69) -> 0 | H71: =SUM(H58:H69) -> 0 | I71: =IF(H71<>0,J71/H71,0) -> 0 | J71: =SUM(J58:J69) -> 0 | L71: =SUM(L58:L69) -> 0 | M71: =IF(L71<>0,N71/L71,0) -> 0 | N71: =SUM(N58:N69) -> 0 | P71: =SUM(P58:P69) -> 0
B73: Add Extra Host Here (II) | D73: Network | H73: Line Connection | L73: Transformation Connection | P73: Total Line
B75: Month | D75: Units Billed | E75: Rate | F75: Amount | H75: Units Billed | I75: Rate | J75: Amount | L75: Units Billed | M75: Rate | N75: Amount | P75: Amount
B77: January | D77: ='12. RTSR-Historic Wholesale'!D76 -> 0 | E77: ='11. RTSR-UTRs & Sub-Tx'!G59 -> 0 | F77: =D77*E77 -> 0 | H77: ='12. RTSR-Historic Wholesale'!H76 -> 0 | I77: ='11. RTSR-UTRs & Sub-Tx'!G61 -> 0 | J77: =H77*I77 -> 0 | L77: ='12. RTSR-Historic Wholesale'!L76 -> 0 | M77: ='11. RTSR-UTRs & Sub-Tx'!G63 -> 0 | N77: =L77*M77 -> 0 | P77: =J77+N77 -> 0
B78: February | D78: ='12. RTSR-Historic Wholesale'!D77 -> 0 | E78: =E77 -> 0 | F78: =D78*E78 -> 0 | H78: ='12. RTSR-Historic Wholesale'!H77 -> 0 | I78: =I77 -> 0 | J78: =H78*I78 -> 0 | L78: ='12. RTSR-Historic Wholesale'!L77 -> 0 | M78: =M77 -> 0 | N78: =L78*M78 -> 0 | P78: 0
B79: March | D79: ='12. RTSR-Historic Wholesale'!D78 -> 0 | E79: =E78 -> 0 | F79: 0 | H79: ='12. RTSR-Historic Wholesale'!H78 -> 0 | I79: =I78 -> 0 | J79: 0 | L79: ='12. RTSR-Historic Wholesale'!L78 -> 0 | M79: =M78 -> 0 | N79: 0 | P79: 0
B80: April | D80: ='12. RTSR-Historic Wholesale'!D79 -> 0 | E80: 0 | F80: 0 | H80: ='12. RTSR-Historic Wholesale'!H79 -> 0 | I80: 0 | J80: 0 | L80: ='12. RTSR-Historic Wholesale'!L79 -> 0 | M80: =M79 -> 0 | N80: 0 | P80: 0
B81: May | D81: ='12. RTSR-Historic Wholesale'!D80 -> 0 | E81: 0 | F81: 0 | H81: ='12. RTSR-Historic Wholesale'!H80 -> 0 | I81: 0 | J81: 0 | L81: ='12. RTSR-Historic Wholesale'!L80 -> 0 | M81: 0 | N81: 0 | P81: 0
B82: June | D82: ='12. RTSR-Historic Wholesale'!D81 -> 0 | E82: 0 | F82: 0 | H82: ='12. RTSR-Historic Wholesale'!H81 -> 0 | I82: 0 | J82: 0 | L82: ='12. RTSR-Historic Wholesale'!L81 -> 0 | M82: 0 | N82: 0 | P82: 0
B83: July | D83: ='12. RTSR-Historic Wholesale'!D82 -> 0 | E83: 0 | F83: 0 | H83: ='12. RTSR-Historic Wholesale'!H82 -> 0 | I83: 0 | J83: 0 | L83: ='12. RTSR-Historic Wholesale'!L82 -> 0 | M83: 0 | N83: 0 | P83: 0
B84: August | D84: ='12. RTSR-Historic Wholesale'!D83 -> 0 | E84: 0 | F84: 0 | H84: ='12. RTSR-Historic Wholesale'!H83 -> 0 | I84: 0 | J84: 0 | L84: ='12. RTSR-Historic Wholesale'!L83 -> 0 | M84: 0 | N84: 0 | P84: 0
B85: September | D85: ='12. RTSR-Historic Wholesale'!D84 -> 0 | E85: 0 | F85: 0 | H85: ='12. RTSR-Historic Wholesale'!H84 -> 0 | I85: 0 | J85: 0 | L85: ='12. RTSR-Historic Wholesale'!L84 -> 0 | M85: 0 | N85: 0 | P85: 0
B86: October | D86: ='12. RTSR-Historic Wholesale'!D85 -> 0 | E86: 0 | F86: 0 | H86: ='12. RTSR-Historic Wholesale'!H85 -> 0 | I86: 0 | J86: 0 | L86: ='12. RTSR-Historic Wholesale'!L85 -> 0 | M86: 0 | N86: 0 | P86: 0
B87: November | D87: ='12. RTSR-Historic Wholesale'!D86 -> 0 | E87: 0 | F87: 0 | H87: ='12. RTSR-Historic Wholesale'!H86 -> 0 | I87: 0 | J87: 0 | L87: ='12. RTSR-Historic Wholesale'!L86 -> 0 | M87: 0 | N87: 0 | P87: 0
B88: December | D88: ='12. RTSR-Historic Wholesale'!D87 -> 0 | E88: 0 | F88: 0 | H88: ='12. RTSR-Historic Wholesale'!H87 -> 0 | I88: 0 | J88: 0 | L88: ='12. RTSR-Historic Wholesale'!L87 -> 0 | M88: 0 | N88: 0 | P88: 0
B90: Total | D90: =SUM(D77:D88) -> 0 | E90: =IF(D90<>0,F90/D90,0) -> 0 | F90: =SUM(F77:F88) -> 0 | H90: =SUM(H77:H88) -> 0 | I90: =IF(H90<>0,J90/H90,0) -> 0 | J90: =SUM(J77:J88) -> 0 | L90: =SUM(L77:L88) -> 0 | M90: =IF(L90<>0,N90/L90,0) -> 0 | N90: =SUM(N77:N88) -> 0 | P90: =SUM(P77:P88) -> 0
B92: Total | D92: Network | H92: Line Connection | L92: Transformation Connection | P92: Total Line
B94: Month | D94: Units Billed | E94: Rate | F94: Amount | H94: Units Billed | I94: Rate | J94: Amount | L94: Units Billed | M94: Rate | N94: Amount | P94: Amount
B96: January | D96: =D20+D39+D58+D77 -> 785374.59 | E96: =IF(D96<>0,F96/D96,0) -> 3.578735323 | F96: =F20+F39+F58+F77 -> 2810647.787 | H96: =H20+H39+H58+H77 -> 781603.74 | I96: =IF(H96<>0,J96/H96,0) -> 0.9360067053 | J96: =J20+J39+J58+J77 -> 731586.3415 | L96: =L20+L39+L58+L77 -> 837775.74 | M96: =IF(L96<>0,N96/L96,0) -> 2.296918306 | N96: =N20+N39+N58+N77 -> 1924302.434 | P96: =J96+N96 -> 2655888.775
B97: February | D97: =D21+D40+D59+D78 -> 750659.68 | E97: 3.577945244 | F97: =F21+F40+F59+F78 -> 2685819.232 | H97: =H21+H40+H59+H78 -> 738394.36 | I97: 0.9357656193 | J97: =J21+J40+J59+J78 -> 690964.0556 | L97: =L21+L40+L59+L78 -> 801810.36 | M97: 2.296741722 | N97: =N21+N40+N59+N78 -> 1841551.307 | P97: 2532515.363
B98: March | D98: 759858.04 | E98: 3.570621834 | F98: 2713165.708 | H98: 742329.08 | I98: 0.9320131507 | J98: 691860.4647 | L98: 805048.08 | M98: 2.285267701 | N98: 1839750.375 | P98: 2531610.84
B99: April | D99: 683409.8 | E99: 3.577776996 | F99: 2445087.862 | H99: 673282.48 | I99: 0.9354322484 | J99: 629810.1441 | L99: 725306.48 | M99: 2.29537459 | N99: 1664850.064 | P99: 2294660.208
B100: May | D100: 766303.03 | E100: 3.577579866 | F100: 2741510.292 | H100: 738027.35 | I100: 0.9350847714 | J100: 690118.1358 | L100: 799030.35 | M100: 2.294537529 | N100: 1833405.125 | P100: 2523523.261
B101: June | D101: 902870.43 | E101: 3.575015089 | F101: 3227775.411 | H101: 902324.87 | I101: 0.9346407295 | J101: 843349.5748 | L101: 964453.87 | M101: 2.292579515 | N101: 2211087.185 | P101: 3054436.76
B102: July | D102: 912556.86 | E102: 3.574851319 | F102: 3262255.095 | H102: 914958.28 | I102: 0.9347570579 | J102: 855263.7099 | L102: 977242.28 | M102: 2.292904243 | N102: 2240722.97 | P102: 3095986.68
B103: August | D103: 940828.52 | E103: 3.576094182 | F103: 3364491.397 | H103: 905774.34 | I103: 0.9346368789 | J103: 846570.1021 | L103: 967692.34 | M103: 2.292545642 | N103: 2218478.857 | P103: 3065048.959
B104: September | D104: 941072.59 | E104: 3.574082869 | F104: 3363471.423 | H104: 945657.6 | I104: 0.9343319047 | J104: 883558.0666 | L104: 1009219.6 | M104: 2.291551718 | N104: 2312678.908 | P104: 3196236.974
B105: October | D105: 724181.36 | E105: 3.577446902 | F105: 2590720.363 | H105: 711824.42 | I105: 0.9353031859 | J105: 665771.6478 | L105: 763487.42 | M105: 2.294782334 | N105: 1752037.444 | P105: 2417809.092
B106: November | D106: 739145.23 | E106: 3.578562791 | F106: 2645077.617 | H106: 726254.26 | I106: 0.9359977199 | J106: 679772.3315 | L106: 780872.26 | M106: 2.297024455 | N106: 1793682.677 | P106: 2473455.009
B107: December | D107: 771783.21 | E107: 3.577589086 | F107: 2761123.189 | H107: 764816.82 | I107: 0.9358399744 | J107: 715746.1532 | L107: 822154.82 | M107: 2.296530784 | N107: 1888103.854 | P107: 2603850.007
B109: Total | D109: =SUM(D96:D107) -> 9678043.34 | E109: =IF(D109<>0,F109/D109,0) -> 3.576254431 | F109: =SUM(F96:F107) -> 34611145.37 | H109: =SUM(H96:H107) -> 9545247.6 | I109: =IF(H109<>0,J109/H109,0) -> 0.934954346 | J109: =SUM(J96:J107) -> 8924370.728 | L109: =SUM(L96:L107) -> 10254093.6 | M109: =IF(L109<>0,N109/L109,0) -> 2.293781598 | N109: =SUM(N96:N107) -> 23520651.2 | P109: =SUM(P96:P107) -> 32445021.93
N111: Low Voltage Switchgear Credit (if applicable) | P111: ='11. RTSR-UTRs & Sub-Tx'!G68 -> 0
N113: Total including deduction for Low Voltage Switchgear Credit | P113: =P109+P111 -> 32445021.93

Sheet 14. RTSR-Forecast Wholesale
A1: Back to Index
B2: INCENTIVE REGULATION MODEL FOR 2018 FILERS
B13: The purpose of this sheet is to calculate the expected billing when forecasted 2018 Uniform Transmission Rates are applied against historical 2016 transmission units.
B16: IESO | D16: Network | H16: Line Connection | L16: Transformation Connection | P16: Total Line
B18: Month | D18: Units Billed | E18: Rate | F18: 558828431 | H18: Units Billed | I18: Rate | J18: Amount | L18: Units Billed | M18: Rate | N18: Amount | P18: Amount
B20: January | D20: ='12. RTSR-Historic Wholesale'!D19 -> 726321 | E20: ='11. RTSR-UTRs & Sub-Tx'!I16 -> 3.61 | F20: =+E20*D20 -> 2622018.81 | H20: ='12. RTSR-Historic Wholesale'!H19 -> 720502 | I20: ='11. RTSR-UTRs & Sub-Tx'!I18 -> 0.95 | J20: =H20*I20 -> 684476.9 | L20: ='12. RTSR-Historic Wholesale'!L19 -> 776674 | M20: ='11. RTSR-UTRs & Sub-Tx'!I20 -> 2.34 | N20: =L20*M20 -> 1817417.16 | P20: =J20+N20 -> 2501894.06
B21: February | D21: ='12. RTSR-Historic Wholesale'!D20 -> 692790 | E21: =E20 -> 3.61 | F21: =+E21*D21 -> 2500971.9 | H21: ='12. RTSR-Historic Wholesale'!H20 -> 679676 | I21: =I20 -> 0.95 | J21: 645692.2 | L21: ='12. RTSR-Historic Wholesale'!L20 -> 743092 | M21: =M20 -> 2.34 | N21: 1738835.28 | P21: 2384527.48
B22: March | D22: ='12. RTSR-Historic Wholesale'!D21 -> 687896 | E22: 3.61 | F22: 2483304.56 | H22: ='12. RTSR-Historic Wholesale'!H21 -> 667736 | I22: 0.95 | J22: 634349.2 | L22: ='12. RTSR-Historic Wholesale'!L21 -> 730455 | M22: 2.34 | N22: 1709264.7 | P22: 2343613.9
B23: April | D23: ='12. RTSR-Historic Wholesale'!D22 -> 630448 | E23: 3.61 | F23: 2275917.28 | H23: ='12. RTSR-Historic Wholesale'!H22 -> 618488 | I23: 0.95 | J23: 587563.6 | L23: ='12. RTSR-Historic Wholesale'!L22 -> 670512 | M23: 2.34 | N23: 1568998.08 | P23: 2156561.68
B24: May | D24: ='12. RTSR-Historic Wholesale'!D23 -> 706554 | E24: 3.61 | F24: 2550659.94 | H24: ='12. RTSR-Historic Wholesale'!H23 -> 676531 | I24: 0.95 | J24: 642704.45 | L24: ='12. RTSR-Historic Wholesale'!L23 -> 737534 | M24: 2.34 | N24: 1725829.56 | P24: 2368534.01
B25: June | D25: ='12. RTSR-Historic Wholesale'!D24 -> 826904 | E25: 3.61 | F25: 2985123.44 | H25: ='12. RTSR-Historic Wholesale'!H24 -> 824900 | I25: 0.95 | J25: 783655 | L25: ='12. RTSR-Historic Wholesale'!L24 -> 887029 | M25: 2.34 | N25: 2075647.86 | P25: 2859302.86
B26: July | D26: ='12. RTSR-Historic Wholesale'!D25 -> 835416 | E26: 3.61 | F26: 3015851.76 | H26: ='12. RTSR-Historic Wholesale'!H25 -> 837044 | I26: 0.95 | J26: 795191.8 | L26: ='12. RTSR-Historic Wholesale'!L25 -> 899328 | M26: 2.34 | N26: 2104427.52 | P26: 2899619.32
B27: August | D27: ='12. RTSR-Historic Wholesale'!D26 -> 864110 | E27: 3.61 | F27: 3119437.1 | H27: ='12. RTSR-Historic Wholesale'!H26 -> 828034 | I27: 0.95 | J27: 786632.3 | L27: ='12. RTSR-Historic Wholesale'!L26 -> 889952 | M27: 2.34 | N27: 2082487.68 | P27: 2869119.98
B28: September | D28: ='12. RTSR-Historic Wholesale'!D27 -> 859782 | E28: 3.61 | F28: 3103813.02 | H28: ='12. RTSR-Historic Wholesale'!H27 -> 862883 | I28: 0.95 | J28: 819738.85 | L28: ='12. RTSR-Historic Wholesale'!L27 -> 926445 | M28: 2.34 | N28: 2167881.3 | P28: 2987620.15
B29: October | D29: ='12. RTSR-Historic Wholesale'!D28 -> 667485 | E29: 3.61 | F29: 2409620.85 | H29: ='12. RTSR-Historic Wholesale'!H28 -> 653380 | I29: 0.95 | J29: 620711 | L29: ='12. RTSR-Historic Wholesale'!L28 -> 705043 | M29: 2.34 | N29: 1649800.62 | P29: 2270511.62
B30: November | D30: ='12. RTSR-Historic Wholesale'!D29 -> 683261 | E30: 3.61 | F30: 2466572.21 | H30: ='12. RTSR-Historic Wholesale'!H29 -> 669443 | I30: 0.95 | J30: 635970.85 | L30: ='12. RTSR-Historic Wholesale'!L29 -> 724061 | M30: 2.34 | N30: 1694302.74 | P30: 2330273.59
B31: December | D31: ='12. RTSR-Historic Wholesale'!D30 -> 711624 | E31: 3.61 | F31: 2568962.64 | H31: ='12. RTSR-Historic Wholesale'!H30 -> 704315 | I31: 0.95 | J31: 669099.25 | L31: ='12. RTSR-Historic Wholesale'!L30 -> 761653 | M31: 2.34 | N31: 1782268.02 | P31: 2451367.27
B33: Total | D33: =SUM(D20:D31) -> 8892591 | E33: =IF(D33<>0,F33/D33,0) -> 3.61 | F33: =SUM(F20:F31) -> 32102253.51 | H33: =SUM(H20:H31) -> 8742932 | I33: =IF(H33<>0,J33/H33,0) -> 0.95 | J33: =SUM(J20:J31) -> 8305785.4 | L33: =SUM(L20:L31) -> 9451778 | M33: =IF(L33<>0,N33/L33,0) -> 2.34 | N33: =SUM(N20:N31) -> 22117160.52 | P33: =SUM(P20:P31) -> 30422945.92
B35: Hydro One | D35: Network | H35: Line Connection | L35: Transformation Connection | P35: Total Line
B37: Month | D37: Units Billed | E37: Rate | F37: Amount | H37: Units Billed | I37: Rate | J37: Amount | L37: Units Billed | M37: Rate | N37: Amount | P37: Amount
B39: January | D39: ='12. RTSR-Historic Wholesale'!D38 -> 59053.59 | E39: ='11. RTSR-UTRs & Sub-Tx'!I29 -> 3.1942 | F39: =D39*E39 -> 188628.9772 | H39: ='12. RTSR-Historic Wholesale'!H38 -> 61101.74 | I39: ='11. RTSR-UTRs & Sub-Tx'!I31 -> 0.771 | J39: =H39*I39 -> 47109.44154 | L39: ='12. RTSR-Historic Wholesale'!L38 -> 61101.74 | M39: ='11. RTSR-UTRs & Sub-Tx'!I33 -> 1.7493 | N39: =L39*M39 -> 106885.2738 | P39: =J39+N39 -> 153994.7153
B40: February | D40: ='12. RTSR-Historic Wholesale'!D39 -> 57869.68 | E40: =E39 -> 3.1942 | F40: 184847.3319 | H40: ='12. RTSR-Historic Wholesale'!H39 -> 58718.36 | I40: =I39 -> 0.771 | J40: 45271.85556 | L40: ='12. RTSR-Historic Wholesale'!L39 -> 58718.36 | M40: =M39 -> 1.7493 | N40: 102716.0271 | P40: 147987.8827
B41: March | D41: ='12. RTSR-Historic Wholesale'!D40 -> 71962.04 | E41: 3.1942 | F41: 229861.1482 | H41: ='12. RTSR-Historic Wholesale'!H40 -> 74593.08 | I41: 0.771 | J41: 57511.26468 | L41: ='12. RTSR-Historic Wholesale'!L40 -> 74593.08 | M41: 1.7493 | N41: 130485.6748 | P41: 187996.9395
B42: April | D42: ='12. RTSR-Historic Wholesale'!D41 -> 52961.8 | E42: 3.1942 | F42: 169170.5816 | H42: ='12. RTSR-Historic Wholesale'!H41 -> 54794.48 | I42: 0.771 | J42: 42246.54408 | L42: ='12. RTSR-Historic Wholesale'!L41 -> 54794.48 | M42: 1.7493 | N42: 95851.98386 | P42: 138098.5279
B43: May | D43: ='12. RTSR-Historic Wholesale'!D42 -> 59749.03 | E43: 3.1942 | F43: 190850.3516 | H43: ='12. RTSR-Historic Wholesale'!H42 -> 61496.35 | I43: 0.771 | J43: 47413.68585 | L43: ='12. RTSR-Historic Wholesale'!L42 -> 61496.35 | M43: 1.7493 | N43: 107575.5651 | P43: 154989.2509
B44: June | D44: ='12. RTSR-Historic Wholesale'!D43 -> 75966.43 | E44: 3.1942 | F44: 242651.9707 | H44: ='12. RTSR-Historic Wholesale'!H43 -> 77424.87 | I44: 0.771 | J44: 59694.57477 | L44: ='12. RTSR-Historic Wholesale'!L43 -> 77424.87 | M44: 1.7493 | N44: 135439.3251 | P44: 195133.8999
B45: July | D45: ='12. RTSR-Historic Wholesale'!D44 -> 77140.86 | E45: 3.1942 | F45: 246403.335 | H45: ='12. RTSR-Historic Wholesale'!H44 -> 77914.28 | I45: 0.771 | J45: 60071.90988 | L45: ='12. RTSR-Historic Wholesale'!L44 -> 77914.28 | M45: 1.7493 | N45: 136295.45 | P45: 196367.3599
B46: August | D46: ='12. RTSR-Historic Wholesale'!D45 -> 76718.52 | E46: 3.1942 | F46: 245054.2966 | H46: ='12. RTSR-Historic Wholesale'!H45 -> 77740.34 | I46: 0.771 | J46: 59937.80214 | L46: ='12. RTSR-Historic Wholesale'!L45 -> 77740.34 | M46: 1.7493 | N46: 135991.1768 | P46: 195928.9789
B47: September | D47: ='12. RTSR-Historic Wholesale'!D46 -> 81290.59 | E47: 3.1942 | F47: 259658.4026 | H47: ='12. RTSR-Historic Wholesale'!H46 -> 82774.6 | I47: 0.771 | J47: 63819.2166 | L47: ='12. RTSR-Historic Wholesale'!L46 -> 82774.6 | M47: 1.7493 | N47: 144797.6078 | P47: 208616.8244
B48: October | D48: ='12. RTSR-Historic Wholesale'!D47 -> 56696.36 | E48: 3.1942 | F48: 181099.5131 | H48: ='12. RTSR-Historic Wholesale'!H47 -> 58444.42 | I48: 0.771 | J48: 45060.64782 | L48: ='12. RTSR-Historic Wholesale'!L47 -> 58444.42 | M48: 1.7493 | N48: 102236.8239 | P48: 147297.4717
B49: November | D49: ='12. RTSR-Historic Wholesale'!D48 -> 55884.23 | E49: 3.1942 | F49: 178505.4075 | H49: ='12. RTSR-Historic Wholesale'!H48 -> 56811.26 | I49: 0.771 | J49: 43801.48146 | L49: ='12. RTSR-Historic Wholesale'!L48 -> 56811.26 | M49: 1.7493 | N49: 99379.93712 | P49: 143181.4186
B50: December | D50: ='12. RTSR-Historic Wholesale'!D49 -> 60159.21 | E50: 3.1942 | F50: 192160.5486 | H50: ='12. RTSR-Historic Wholesale'!H49 -> 60501.82 | I50: 0.771 | J50: 46646.90322 | L50: ='12. RTSR-Historic Wholesale'!L49 -> 60501.82 | M50: 1.7493 | N50: 105835.8337 | P50: 152482.7369
B52: Total | D52: =SUM(D39:D50) -> 785452.34 | E52: =IF(D52<>0,F52/D52,0) -> 3.1942 | F52: =SUM(F39:F50) -> 2508891.864 | H52: =SUM(H39:H50) -> 802315.6 | I52: =IF(H52<>0,J52/H52,0) -> 0.771 | J52: =SUM(J39:J50) -> 618585.3276 | L52: =SUM(L39:L50) -> 802315.6 | M52: =IF(L52<>0,N52/L52,0) -> 1.7493 | N52: =SUM(N39:N50) -> 1403490.679 | P52: =SUM(P39:P50) -> 2022076.007
B54: Add Extra Host Here (I) | D54: Network | H54: Line Connection | L54: Transformation Connection | P54: Total Line
B56: Month | D56: Units Billed | E56: Rate | F56: Amount | H56: Units Billed | I56: Rate | J56: Amount | L56: Units Billed | M56: Rate | N56: Amount | P56: Amount
B58: January | D58: ='12. RTSR-Historic Wholesale'!D57 -> 0 | E58: ='11. RTSR-UTRs & Sub-Tx'!I44 -> 0 | F58: =D58*E58 -> 0 | H58: ='12. RTSR-Historic Wholesale'!H57 -> 0 | I58: ='11. RTSR-UTRs & Sub-Tx'!I46 -> 0 | J58: =H58*I58 -> 0 | L58: ='12. RTSR-Historic Wholesale'!L57 -> 0 | M58: ='11. RTSR-UTRs & Sub-Tx'!I48 -> 0 | N58: =L58*M58 -> 0 | P58: =J58+N58 -> 0
B59: February | D59: ='12. RTSR-Historic Wholesale'!D58 -> 0 | E59: =E58 -> 0 | F59: 0 | H59: ='12. RTSR-Historic Wholesale'!H58 -> 0 | I59: =I58 -> 0 | J59: 0 | L59: ='12. RTSR-Historic Wholesale'!L58 -> 0 | M59: =M58 -> 0 | N59: 0 | P59: 0
B60: March | D60: ='12. RTSR-Historic Wholesale'!D59 -> 0 | E60: 0 | F60: 0 | H60: ='12. RTSR-Historic Wholesale'!H59 -> 0 | I60: 0 | J60: 0 | L60: ='12. RTSR-Historic Wholesale'!L59 -> 0 | M60: 0 | N60: 0 | P60: 0
B61: April | D61: ='12. RTSR-Historic Wholesale'!D60 -> 0 | E61: 0 | F61: 0 | H61: ='12. RTSR-Historic Wholesale'!H60 -> 0 | I61: 0 | J61: 0 | L61: ='12. RTSR-Historic Wholesale'!L60 -> 0 | M61: 0 | N61: 0 | P61: 0
B62: May | D62: ='12. RTSR-Historic Wholesale'!D61 -> 0 | E62: 0 | F62: 0 | H62: ='12. RTSR-Historic Wholesale'!H61 -> 0 | I62: 0 | J62: 0 | L62: ='12. RTSR-Historic Wholesale'!L61 -> 0 | M62: 0 | N62: 0 | P62: 0
B63: June | D63: ='12. RTSR-Historic Wholesale'!D62 -> 0 | E63: 0 | F63: 0 | H63: ='12. RTSR-Historic Wholesale'!H62 -> 0 | I63: 0 | J63: 0 | L63: ='12. RTSR-Historic Wholesale'!L62 -> 0 | M63: 0 | N63: 0 | P63: 0
B64: July | D64: ='12. RTSR-Historic Wholesale'!D63 -> 0 | E64: 0 | F64: 0 | H64: ='12. RTSR-Historic Wholesale'!H63 -> 0 | I64: 0 | J64: 0 | L64: ='12. RTSR-Historic Wholesale'!L63 -> 0 | M64: 0 | N64: 0 | P64: 0
B65: August | D65: ='12. RTSR-Historic Wholesale'!D64 -> 0 | E65: 0 | F65: 0 | H65: ='12. RTSR-Historic Wholesale'!H64 -> 0 | I65: 0 | J65: 0 | L65: ='12. RTSR-Historic Wholesale'!L64 -> 0 | M65: 0 | N65: 0 | P65: 0
B66: September | D66: ='12. RTSR-Historic Wholesale'!D65 -> 0 | E66: 0 | F66: 0 | H66: ='12. RTSR-Historic Wholesale'!H65 -> 0 | I66: 0 | J66: 0 | L66: ='12. RTSR-Historic Wholesale'!L65 -> 0 | M66: 0 | N66: 0 | P66: 0
B67: October | D67: ='12. RTSR-Historic Wholesale'!D66 -> 0 | E67: 0 | F67: 0 | H67: ='12. RTSR-Historic Wholesale'!H66 -> 0 | I67: 0 | J67: 0 | L67: ='12. RTSR-Historic Wholesale'!L66 -> 0 | M67: 0 | N67: 0 | P67: 0
B68: November | D68: ='12. RTSR-Historic Wholesale'!D67 -> 0 | E68: 0 | F68: 0 | H68: ='12. RTSR-Historic Wholesale'!H67 -> 0 | I68: 0 | J68: 0 | L68: ='12. RTSR-Historic Wholesale'!L67 -> 0 | M68: 0 | N68: 0 | P68: 0
B69: December | D69: ='12. RTSR-Historic Wholesale'!D68 -> 0 | E69: 0 | F69: 0 | H69: ='12. RTSR-Historic Wholesale'!H68 -> 0 | I69: 0 | J69: 0 | L69: ='12. RTSR-Historic Wholesale'!L68 -> 0 | M69: 0 | N69: 0 | P69: 0
B71: Total | D71: =SUM(D58:D69) -> 0 | E71: =IF(D71<>0,F71/D71,0) -> 0 | F71: =SUM(F58:F69) -> 0 | H71: =SUM(H58:H69) -> 0 | I71: =IF(H71<>0,J71/H71,0) -> 0 | J71: =SUM(J58:J69) -> 0 | L71: =SUM(L58:L69) -> 0 | M71: =IF(L71<>0,N71/L71,0) -> 0 | N71: =SUM(N58:N69) -> 0 | P71: =SUM(P58:P69) -> 0
B73: Add Extra Host Here (II) | D73: Network | H73: Line Connection | L73: Transformation Connection | P73: Total Line
B75: Month | D75: Units Billed | E75: Rate | F75: Amount | H75: Units Billed | I75: Rate | J75: Amount | L75: Units Billed | M75: Rate | N75: Amount | P75: Amount
B77: January | D77: ='12. RTSR-Historic Wholesale'!D76 -> 0 | E77: ='11. RTSR-UTRs & Sub-Tx'!I59 -> 0 | F77: =D77*E77 -> 0 | H77: ='12. RTSR-Historic Wholesale'!H76 -> 0 | I77: ='11. RTSR-UTRs & Sub-Tx'!I61 -> 0 | J77: =H77*I77 -> 0 | L77: ='12. RTSR-Historic Wholesale'!L76 -> 0 | M77: ='11. RTSR-UTRs & Sub-Tx'!I63 -> 0 | N77: =L77*M77 -> 0 | P77: =J77+N77 -> 0
B78: February | D78: ='12. RTSR-Historic Wholesale'!D77 -> 0 | E78: =E77 -> 0 | F78: 0 | H78: ='12. RTSR-Historic Wholesale'!H77 -> 0 | I78: =I77 -> 0 | J78: 0 | L78: ='12. RTSR-Historic Wholesale'!L77 -> 0 | M78: =M77 -> 0 | N78: 0 | P78: 0
B79: March | D79: ='12. RTSR-Historic Wholesale'!D78 -> 0 | E79: 0 | F79: 0 | H79: ='12. RTSR-Historic Wholesale'!H78 -> 0 | I79: 0 | J79: 0 | L79: ='12. RTSR-Historic Wholesale'!L78 -> 0 | M79: 0 | N79: 0 | P79: 0
B80: April | D80: ='12. RTSR-Historic Wholesale'!D79 -> 0 | E80: 0 | F80: 0 | H80: ='12. RTSR-Historic Wholesale'!H79 -> 0 | I80: 0 | J80: 0 | L80: ='12. RTSR-Historic Wholesale'!L79 -> 0 | M80: 0 | N80: 0 | P80: 0
B81: May | D81: ='12. RTSR-Historic Wholesale'!D80 -> 0 | E81: 0 | F81: 0 | H81: ='12. RTSR-Historic Wholesale'!H80 -> 0 | I81: 0 | J81: 0 | L81: ='12. RTSR-Historic Wholesale'!L80 -> 0 | M81: 0 | N81: 0 | P81: 0
B82: June | D82: ='12. RTSR-Historic Wholesale'!D81 -> 0 | E82: 0 | F82: 0 | H82: ='12. RTSR-Historic Wholesale'!H81 -> 0 | I82: 0 | J82: 0 | L82: ='12. RTSR-Historic Wholesale'!L81 -> 0 | M82: 0 | N82: 0 | P82: 0
B83: July | D83: ='12. RTSR-Historic Wholesale'!D82 -> 0 | E83: 0 | F83: 0 | H83: ='12. RTSR-Historic Wholesale'!H82 -> 0 | I83: 0 | J83: 0 | L83: ='12. RTSR-Historic Wholesale'!L82 -> 0 | M83: 0 | N83: 0 | P83: 0
B84: August | D84: ='12. RTSR-Historic Wholesale'!D83 -> 0 | E84: 0 | F84: 0 | H84: ='12. RTSR-Historic Wholesale'!H83 -> 0 | I84: 0 | J84: 0 | L84: ='12. RTSR-Historic Wholesale'!L83 -> 0 | M84: 0 | N84: 0 | P84: 0
B85: September | D85: ='12. RTSR-Historic Wholesale'!D84 -> 0 | E85: 0 | F85: 0 | H85: ='12. RTSR-Historic Wholesale'!H84 -> 0 | I85: 0 | J85: 0 | L85: ='12. RTSR-Historic Wholesale'!L84 -> 0 | M85: 0 | N85: 0 | P85: 0
B86: October | D86: ='12. RTSR-Historic Wholesale'!D85 -> 0 | E86: 0 | F86: 0 | H86: ='12. RTSR-Historic Wholesale'!H85 -> 0 | I86: 0 | J86: 0 | L86: ='12. RTSR-Historic Wholesale'!L85 -> 0 | M86: 0 | N86: 0 | P86: 0
B87: November | D87: ='12. RTSR-Historic Wholesale'!D86 -> 0 | E87: 0 | F87: 0 | H87: ='12. RTSR-Historic Wholesale'!H86 -> 0 | I87: 0 | J87: 0 | L87: ='12. RTSR-Historic Wholesale'!L86 -> 0 | M87: 0 | N87: 0 | P87: 0
B88: December | D88: ='12. RTSR-Historic Wholesale'!D87 -> 0 | E88: 0 | F88: 0 | H88: ='12. RTSR-Historic Wholesale'!H87 -> 0 | I88: 0 | J88: 0 | L88: ='12. RTSR-Historic Wholesale'!L87 -> 0 | M88: 0 | N88: 0 | P88: 0
L89: ='12. RTSR-Historic Wholesale'!L88 -> 0
B90: Total | D90: =SUM(D77:D88) -> 0 | E90: =IF(D90<>0,F90/D90,0) -> 0 | F90: =SUM(F77:F88) -> 0 | H90: =SUM(H77:H88) -> 0 | I90: =IF(H90<>0,J90/H90,0) -> 0 | J90: =SUM(J77:J88) -> 0 | L90: =SUM(L77:L88) -> 0 | M90: =IF(L90<>0,N90/L90,0) -> 0 | N90: =SUM(N77:N88) -> 0 | P90: =SUM(P77:P88) -> 0
B92: Total | D92: Network | H92: Line Connection | L92: Transformation Connection | P92: Total Line
B94: Month | D94: Units Billed | E94: Rate | F94: Amount | H94: Units Billed | I94: Rate | J94: Amount | L94: Units Billed | M94: Rate | N94: Amount | P94: Amount
B96: January | D96: =D20+D39+D58+D77 -> 785374.59 | E96: =IF(D96<>0,F96/D96,0) -> 3.578735323 | F96: =F20+F39+F58+F77 -> 2810647.787 | H96: =H20+H39+H58+H77 -> 781603.74 | I96: =IF(H96<>0,J96/H96,0) -> 0.9360067053 | J96: =J20+J39+J58+J77 -> 731586.3415 | L96: =L20+L39+L58+L77 -> 837775.74 | M96: =IF(L96<>0,N96/L96,0) -> 2.296918306 | N96: =N20+N39+N58+N77 -> 1924302.434 | P96: =J96+N96 -> 2655888.775
B97: February | D97: =D21+D40+D59+D78 -> 750659.68 | E97: 3.577945244 | F97: =F21+F40+F59+F78 -> 2685819.232 | H97: =H21+H40+H59+H78 -> 738394.36 | I97: 0.9357656193 | J97: =J21+J40+J59+J78 -> 690964.0556 | L97: =L21+L40+L59+L78 -> 801810.36 | M97: 2.296741722 | N97: =N21+N40+N59+N78 -> 1841551.307 | P97: 2532515.363
B98: March | D98: 759858.04 | E98: 3.570621834 | F98: 2713165.708 | H98: 742329.08 | I98: 0.9320131507 | J98: 691860.4647 | L98: 805048.08 | M98: 2.285267701 | N98: 1839750.375 | P98: 2531610.84
B99: April | D99: 683409.8 | E99: 3.577776996 | F99: 2445087.862 | H99: 673282.48 | I99: 0.9354322484 | J99: 629810.1441 | L99: 725306.48 | M99: 2.29537459 | N99: 1664850.064 | P99: 2294660.208
B100: May | D100: 766303.03 | E100: 3.577579866 | F100: 2741510.292 | H100: 738027.35 | I100: 0.9350847714 | J100: 690118.1358 | L100: 799030.35 | M100: 2.294537529 | N100: 1833405.125 | P100: 2523523.261
B101: June | D101: 902870.43 | E101: 3.575015089 | F101: 3227775.411 | H101: 902324.87 | I101: 0.9346407295 | J101: 843349.5748 | L101: 964453.87 | M101: 2.292579515 | N101: 2211087.185 | P101: 3054436.76
B102: July | D102: 912556.86 | E102: 3.574851319 | F102: 3262255.095 | H102: 914958.28 | I102: 0.9347570579 | J102: 855263.7099 | L102: 977242.28 | M102: 2.292904243 | N102: 2240722.97 | P102: 3095986.68
B103: August | D103: 940828.52 | E103: 3.576094182 | F103: 3364491.397 | H103: 905774.34 | I103: 0.9346368789 | J103: 846570.1021 | L103: 967692.34 | M103: 2.292545642 | N103: 2218478.857 | P103: 3065048.959
B104: September | D104: 941072.59 | E104: 3.574082869 | F104: 3363471.423 | H104: 945657.6 | I104: 0.9343319047 | J104: 883558.0666 | L104: 1009219.6 | M104: 2.291551718 | N104: 2312678.908 | P104: 3196236.974
B105: October | D105: 724181.36 | E105: 3.577446902 | F105: 2590720.363 | H105: 711824.42 | I105: 0.9353031859 | J105: 665771.6478 | L105: 763487.42 | M105: 2.294782334 | N105: 1752037.444 | P105: 2417809.092
B106: November | D106: 739145.23 | E106: 3.578562791 | F106: 2645077.617 | H106: 726254.26 | I106: 0.9359977199 | J106: 679772.3315 | L106: 780872.26 | M106: 2.297024455 | N106: 1793682.677 | P106: 2473455.009
B107: December | D107: 771783.21 | E107: 3.577589086 | F107: 2761123.189 | H107: 764816.82 | I107: 0.9358399744 | J107: 715746.1532 | L107: 822154.82 | M107: 2.296530784 | N107: 1888103.854 | P107: 2603850.007
B109: Total | D109: =SUM(D96:D107) -> 9678043.34 | E109: =IF(D109<>0,F109/D109,0) -> 3.576254431 | F109: =SUM(F96:F107) -> 34611145.37 | H109: =SUM(H96:H107) -> 9545247.6 | I109: =IF(H109<>0,J109/H109,0) -> 0.934954346 | J109: =SUM(J96:J107) -> 8924370.728 | L109: =SUM(L96:L107) -> 10254093.6 | M109: =IF(L109<>0,N109/L109,0) -> 2.293781598 | N109: =SUM(N96:N107) -> 23520651.2 | P109: =SUM(P96:P107) -> 32445021.93
N111: Low Voltage Switchgear Credit (if applicable) | P111: ='11. RTSR-UTRs & Sub-Tx'!I68 -> 0
N113: Total including deduction for Low Voltage Switchgear Credit | P113: =P109+P111 -> 32445021.93

Sheet 15. RTSR-Rates to Forecast
A1: Back to Index | B1: Back to Index
B2: INCENTIVE REGULATION MODEL FOR 2018 FILERS
B13: The purpose of this table is to re-align the current RTS Network Rates to recover current wholesale network costs.
B15: Rate Class | C15: Rate Description | D15: Unit | E15: Current RTSR-Network | F15: Loss Adjusted Billed kWh | G15: Billed kW | H15: Billed Amount | I15: Billed Amount % | J15: Current Wholesale Billing | K15: Adjusted RTSR Network
F16: 1537580329
A17: ='10. RTSR - Current Rates'!A16 -> R_TN | B17: =+'10. RTSR - Current Rates'!B16 -> RESIDENTIAL SERVICE CLASSIFICATION | C17: =VLOOKUP(A17,RTSR,3,FALSE) -> Retail Transmission Rate – Network Service Rate | D17: =VLOOKUP(A17,RTSR,4,FALSE) -> $/kWh | E17: =+'10. RTSR - Current Rates'!E16 -> 0.007442559704 | F17: =VLOOKUP(A17,RTSR,9,FALSE) -> 1595854623 | G17: =VLOOKUP(A17,RTSR,7,FALSE) -> 0 | H17: =IF(ISERROR(E17*F17), 0, ROUND(E17*F17, 2)) -> 11877243.31 | I17: =H17/SUM(H$17:H$27) -> 0.3222094662 | J17: =I17*total_wholesale_TN -> 11152038.67 | K17: =IF(ISERROR(J17/F17), 0, J17/F17) -> 0.006988129441
A18: ='10. RTSR - Current Rates'!A18 -> GSL_TN | B18: =+'10. RTSR - Current Rates'!B18 -> GENERAL SERVICE LESS THAN 50 kW SERVICE CLASSIFICATION | C18: Retail Transmission Rate – Network Service Rate | D18: $/kWh | E18: =+'10. RTSR - Current Rates'!E18 -> 0.006537383521 | F18: 558828431 | G18: =VLOOKUP(A18,RTSR,7,FALSE) -> 0 | H18: =IF(ISERROR(E18*F18), 0, ROUND(E18*F18, 2)) -> 3653275.78 | I18: 0.09910717564 | J18: =I18*total_wholesale_TN -> 3430212.864 | K18: =IF(ISERROR(J18/F18), 0, J18/F18) -> 0.006138221811
A19: ='10. RTSR - Current Rates'!A20 -> GSG_TN | B19: =+'10. RTSR - Current Rates'!B20 -> GENERAL SERVICE GREATER THAN 50 kW SERVICE CLASSIFICATION | C19: Retail Transmission Rate – Network Service Rate | D19: $/kW | E19: =+'10. RTSR - Current Rates'!E20 -> 2.586892949 | F19: =VLOOKUP(A19,RTSR,9,FALSE) -> 0 | G19: 4824433.383 | H19: =IF(ISERROR(E19*G19), 0, ROUND(E19*G19, 2)) -> 12480292.7 | I19: 0.3385691733 | J19: 11718266.88 | K19: =IF(ISERROR(J19/G19), 0, J19/G19) -> 2.428941587
A20: ='10. RTSR - Current Rates'!A22 -> LU_TN | B20: =+'10. RTSR - Current Rates'!B22 -> LARGE USE 1 SERVICE CLASSIFICATION | C20: Retail Transmission Rate – Network Service Rate | D20: $/kW | E20: =+'10. RTSR - Current Rates'!E22 -> 2.955098492 | F20: 1751908545 | G20: 456125.738 | H20: =IF(ISERROR(E20*G20), 0, ROUND(E20*G20, 2)) -> 1347896.48 | I20: 0.03656614535 | J20: 1265596.173 | K20: =IF(ISERROR(J20/G20), 0, J20/G20) -> 2.774665114
A21: ='10. RTSR - Current Rates'!A24 -> LUDA_TN | B21: =+'10. RTSR - Current Rates'!B24 -> LARGE USE 2 SERVICE CLASSIFICATION | C21: Retail Transmission Rate – Network Service Rate – Interval Metered | D21: $/kW | E21: =+'10. RTSR - Current Rates'!E24 -> 2.955098508 | F21: 0 | G21: 1982813.538 | H21: 5859409.33 | I21: 0.1589558371 | J21: 5501643.585 | K21: 2.774665131
B22: =+'10. RTSR - Current Rates'!B26 -> UNMETERED SCATTERED LOAD SERVICE CLASSIFICATION | C22: Retail Transmission Rate – Network Service Rate | D22: $/kWh | E22: =+'10. RTSR - Current Rates'!E26 -> 0.006637958128 | F22: 220526376.8 | G22: 0 | H22: =IF(ISERROR(E22*F22), 0, ROUND(E22*F22, 2)) -> 1463844.86 | I22: 0.03971162825 | J22: =I22*total_wholesale_TN -> 1374464.938 | K22: =IF(ISERROR(J22/F22), 0, J22/F22) -> 0.006232655513
B23: STANDBY POWER SERVICE CLASSIFICATION
A24: ='10. RTSR - Current Rates'!A26 -> USL_TN | B24: =+'10. RTSR - Current Rates'!B28 -> SENTINEL LIGHTING | C24: Retail Transmission Rate – Network Service Rate | D24: $/kW | E24: =+'10. RTSR - Current Rates'!E28 -> 2.14959205 | F24: 1050812632 | G24: =+'10. RTSR - Current Rates'!G28 -> 946.9101177 | H24: =IF(ISERROR(E24*G24), 0, ROUND(E24*G24, 2)) -> 2035.47 | I24: =H24/SUM(H$17:H$27) -> 5.521884877e-05 | J24: 1911.187602 | K24: 2.018341093
A25: SL_TN | B25: =+'10. RTSR - Current Rates'!B30 -> STREET LIGHTING SERVICE CLASSIFICATION | C25: Retail Transmission Rate – Network Service Rate | D25: $/kW | E25: =+'10. RTSR - Current Rates'!E30 -> 2.036445282 | F25: 0 | G25: 87344.171 | H25: 177871.62 | I25: =H25/SUM(H$17:H$27) -> 0.004825355365 | J25: 167011.076 | K25: 1.912103282
F26: 11347508.42
B28: The purpose of this table is to re-align the current RTS Connection Rates to recover current wholesale connection costs. | F28: 439954.0228
B29: Rate Class | C29: Rate Description | D29: Unit | E29: Current RTSR-Connection | F29: Loss Adjusted Billed kWh | G29: Billed kW | H29: Billed Amount | I29: Billed Amount % | J29: Current Wholesale Billing | K29: Adjusted RTSR-Connection
F30: 31193672.3
A31: R_TC | B31: =B17 -> RESIDENTIAL SERVICE CLASSIFICATION | C31: =VLOOKUP(A31,RTSR,3,FALSE) -> Retail Transmission Rate – Line and Transformation Connection Service Rate | D31: =VLOOKUP(A31,RTSR,4,FALSE) -> $/kWh | E31: =+'10. RTSR - Current Rates'!E17 -> 0.006824313932 | F31: =F17 -> 1595854623 | G31: 0 | H31: =IF(ISERROR(E31*F31), 0, ROUND(E31*F31, 2)) -> 10890612.94 | I31: =H31/SUM(H$31:H$41) -> 0.3149602928 | J31: =I31*total_wholesale_LinePlus -> 10218893.6 | K31: =IF(ISERROR(J31/F31), 0, J31/F31) -> 0.006403398816
A32: GSL_TC | B32: GENERAL SERVICE LESS THAN 50 kW SERVICE CLASSIFICATION | C32: Retail Transmission Rate – Line and Transformation Connection Service Rate | D32: $/kWh | E32: =+'10. RTSR - Current Rates'!E19 -> 0.006130315898 | F32: 558828431 | G32: 0 | H32: =IF(ISERROR(E32*F32), 0, ROUND(E32*F32, 2)) -> 3425794.81 | I32: =H32/SUM(H$31:H$41) -> 0.09907517072 | J32: 3214496.086 | K32: =IF(ISERROR(J32/F32), 0, J32/F32) -> 0.0057522057
A33: GS50_499_TC | B33: GENERAL SERVICE GREATER THAN 50 kW SERVICE CLASSIFICATION | E33: =+'10. RTSR - Current Rates'!E21 -> 2.453630023 | F33: 0 | G33: 4824433.383 | H33: =IF(ISERROR(E33*G33), 0, ROUND(E33*G33, 2)) -> 11837374.59 | I33: 0.3423409671 | J33: 11107260.18 | K33: =IF(ISERROR(J33/G33), 0, J33/G33) -> 2.302293203
A34: GS500_TC | B34: LARGE USE 1 SERVICE CLASSIFICATION | E34: =+'10. RTSR - Current Rates'!E23 -> 2.819482653 | F34: 1751908545 | G34: 456125.738 | H34: =IF(ISERROR(E34*G34), 0, ROUND(E34*G34, 2)) -> 1286038.61 | I34: 0.03719268138 | J34: 1206717.363 | K34: =IF(ISERROR(J34/G34), 0, J34/G34) -> 2.645580511
A35: LU_TC | B35: LARGE USE 2 SERVICE CLASSIFICATION | C35: Retail Transmission Rate – Line and Transformation Connection Service Rate | D35: $/kW | E35: =+'10. RTSR - Current Rates'!E25 -> 2.819482651 | F35: 0 | G35: 1982813.538 | H35: 5590508.37 | I35: 0.1616794355 | J35: 5245692.831 | K35: 2.6455805
B36: UNMETERED SCATTERED LOAD SERVICE CLASSIFICATION | C36: =+C33 ->  | D36: $/kWh | E36: =+'10. RTSR - Current Rates'!E27 -> 0.006245982158 | F36: 220526376.8 | G36: 0 | H36: =IF(ISERROR(E36*F36), 0, ROUND(E36*F36, 2)) -> 1377403.81 | I36: =H36/SUM(H$31:H$41) -> 0.03983499456 | J36: =I36*total_wholesale_LinePlus -> 1292447.272 | K36: =IF(ISERROR(J36/F36), 0, J36/F36) -> 0.005860737798
B37: STANDBY POWER SERVICE CLASSIFICATION
A38: USL_TC | B38: SENTINEL LIGHTING | C38: Retail Transmission Rate – Line and Transformation Connection Service Rate | D38: $/kW | E38: =+'10. RTSR - Current Rates'!E29 -> 1.974307862 | F38: =F24 -> 1050812632 | G38: =G24 -> 946.9101177 | H38: 1869.49 | I38: 5.406629737e-05 | J38: 1754.182204 | K38: =IF(ISERROR(J38/G38), 0, J38/G38) -> 1.85253296
A39: SL_TC | B39: STREET LIGHTING SERVICE CLASSIFICATION | C39: Retail Transmission Rate – Line and Transformation Connection Service Rate | D39: $/kW | E39: =+'10. RTSR - Current Rates'!E31 -> 1.924919242 | F39: =F25 -> 0 | G39: =G25 -> 87344.171 | H39: 168130.48 | I39: 0.00486239163 | J39: 157760.403 | K39: 1.806192688
B42: The purpose of this table is to update the re-aligned RTS Network Rates to recover future wholesale network costs.
B43: Rate Class | C43: Rate Description | D43: Unit | E43: Adjusted RTSR-Network | F43: Loss Adjusted Billed kWh | G43: Billed kW | H43: Billed Amount | I43: Billed Amount % | J43: Current Wholesale Billing | K43: Proposed RTSR-Network
A45: R_TN | B45: =B17 -> RESIDENTIAL SERVICE CLASSIFICATION | C45: =VLOOKUP(A45,RTSR,3,FALSE) -> Retail Transmission Rate – Network Service Rate | D45: =VLOOKUP(A45,RTSR,4,FALSE) -> $/kWh | E45: =K17 -> 0.006988129441 | F45: =VLOOKUP(A45,RTSR,9,FALSE) -> 1595854623 | G45: =VLOOKUP(A45,RTSR,7,FALSE) -> 0 | H45: =IF(ISERROR(E45*F45), 0, ROUND(E45*F45, 2)) -> 11152038.67 | I45: =H45/SUM(H$45:H$55) -> 0.3334930709 | J45: =I45*forecast_wholesale_TN -> 11542577.16 | K45: =IF(ISERROR(J45/F45), 0, J45/F45) -> 0.00723285003
A46: GSL_TN | B46: GENERAL SERVICE LESS THAN 50 kW SERVICE CLASSIFICATION | C46: Retail Transmission Rate – Network Service Rate | D46: $/kWh | E46: 0.006138221811 | F46: 580008028.5 | G46: 0 | H46: =IF(ISERROR(E46*F46), 0, ROUND(E46*F46, 2)) -> 3560217.93 | I46: 0.1064655572 | J46: 3684894.877 | K46: =IF(ISERROR(J46/F46), 0, J46/F46) -> 0.006353179086
A47: GSG_TN | B47: GENERAL SERVICE GREATER THAN 50 kW SERVICE CLASSIFICATION | C47: Retail Transmission Rate – Network Service Rate | D47: $/kW | E47: 2.428941587 | F47: 0 | G47: 4824433.383 | H47: =IF(ISERROR(E47*G47), 0, ROUND(E47*G47, 2)) -> 11718266.88 | I47: 0.3504256866 | J47: 12128634.38 | K47: =IF(ISERROR(J47/G47), 0, J47/G47) -> 2.514001836
A48: LU_TN | B48: LARGE USE 1 SERVICE CLASSIFICATION | C48: Retail Transmission Rate – Network Service Rate | D48: $/kW | E48: 2.774665114 | F48: 0 | G48: 456125.738 | H48: =IF(ISERROR(E48*G48), 0, ROUND(E48*G48, 2)) -> 1265596.17 | I48: 0.03784667232 | J48: 1309916.678 | K48: =IF(ISERROR(J48/G48), 0, J48/G48) -> 2.871832411
A49: LUDA_TN | B49: LARGE USE 2 SERVICE CLASSIFICATION | C49: Retail Transmission Rate – Network Service Rate – Interval Metered | D49: $/kW | E49: 2.774665131 | F49: 0 | G49: 1982813.538 | H49: 5501643.58 | I49: 0.1645223862 | J49: 5694308.225 | K49: 2.871832432
A50: USL_TN | B50: UNMETERED SCATTERED LOAD SERVICE CLASSIFICATION | C50: =+C48 -> Retail Transmission Rate – Network Service Rate | D50: $/kWh | E50: 0.006232655513 | F50: =+'10. RTSR - Current Rates'!I26 -> 11777578.99 | G50: 0 | H50: =IF(ISERROR(E50*F50), 0, ROUND(E50*F50, 2)) -> 73405.59 | I50: 0.002195137262 | J50: =I50*forecast_wholesale_TN -> 75976.2149 | K50: =IF(ISERROR(J50/F50), 0, J50/F50) -> 0.006450919581
B51: STANDBY POWER SERVICE CLASSIFICATION
A52: SEN_TN | B52: SENTINEL LIGHTING | C52: Retail Transmission Rate – Network Service Rate | D52: $/kW | E52: =K24 -> 2.018341093 | F52: 0 | G52: =+'10. RTSR - Current Rates'!G28 -> 946.9101177 | H52: 1911.19 | I52: =H52/SUM(H$45:H$55) -> 5.715265532e-05 | J52: 1978.118862 | K52: 2.089024951
A53: SL_TN | B53: STREET LIGHTING SERVICE CLASSIFICATION | C53: Retail Transmission Rate – Network Service Rate | D53: $/kW | E53: =K25 -> 1.912103282 | F53: 0 | G53: 87344.171 | H53: 167011.08 | I53: =H53/SUM(H$45:H$55) -> 0.004994336874 | J53: 172859.7196 | K53: 1.979064174
B56: The purpose of this table is to update the re-aligned RTS Connection Rates to recover future wholesale connection costs.
B57: Rate Class | C57: Rate Description | D57: Unit | E57: Adjusted RTSR-Connection | F57: Loss Adjusted Billed kWh | G57: Billed kW | H57: Billed Amount | I57: Billed Amount % | J57: Current Wholesale Billing | K57: Proposed RTSR-Connection
A59: R_TC | B59: =B17 -> RESIDENTIAL SERVICE CLASSIFICATION | C59: =VLOOKUP(A59,RTSR,3,FALSE) -> Retail Transmission Rate – Line and Transformation Connection Service Rate | D59: =VLOOKUP(A59,RTSR,4,FALSE) -> $/kWh | E59: =K31 -> 0.006403398816 | F59: =VLOOKUP(A59,RTSR,9,FALSE) -> 1595854623 | G59: =VLOOKUP(A59,RTSR,7,FALSE) -> 0 | H59: =IF(ISERROR(E59*F59), 0, ROUND(E59*F59, 2)) -> 10218893.6 | I59: =H59/SUM(H$59:H$69) -> 0.3260298511 | J59: =I59*forecast_wholesale_LNPlus -> 10578045.67 | K59: =IF(ISERROR(J59/F59), 0, J59/F59) -> 0.006628451936
A60: GSL_TC | B60: GENERAL SERVICE LESS THAN 50 kW SERVICE CLASSIFICATION | C60: Retail Transmission Rate – Line and Transformation Connection Service Rate | D60: $/kWh | E60: 0.0057522057 | F60: 580008028.5 | G60: 0 | H60: =IF(ISERROR(E60*F60), 0, ROUND(E60*F60, 2)) -> 3336325.49 | I60: =H60/SUM(H$59:H$69) -> 0.1064441754 | J60: 3453583.605 | K60: =IF(ISERROR(J60/F60), 0, J60/F60) -> 0.005954372068
A61: GSG_TC | B61: GENERAL SERVICE GREATER THAN 50 kW SERVICE CLASSIFICATION | C61: Retail Transmission Rate – Line and Transformation Connection Service Rate | D61: $/kW | E61: 2.302293203 | F61: 0 | G61: 4824433.383 | H61: =IF(ISERROR(E61*G61), 0, ROUND(E61*G61, 2)) -> 11107260.18 | I61: 0.3543728435 | J61: 11497634.68 | K61: =IF(ISERROR(J61/G61), 0, J61/G61) -> 2.383209336
A62: LU_TC | B62: LARGE USE 1 SERVICE CLASSIFICATION | C62: Retail Transmission Rate – Line and Transformation Connection Service Rate | D62: $/kW | E62: 2.645580511 | F62: 0 | G62: 456125.738 | H62: =IF(ISERROR(E62*G62), 0, ROUND(E62*G62, 2)) -> 1206717.36 | I62: 0.03849985102 | J62: 1249128.51 | K62: =IF(ISERROR(J62/G62), 0, J62/G62) -> 2.738561775
A63: LUDA_TC | B63: LARGE USE 2 SERVICE CLASSIFICATION | C63: Retail Transmission Rate – Line and Transformation Connection Service Rate – Interval Metered | D63: $/kW | E63: 2.6455805 | F63: 0 | G63: 1982813.538 | H63: 5245692.83 | I63: 0.1673618025 | J63: 5430057.351 | K63: 2.738561769
A64: USL_TC | B64: UNMETERED SCATTERED LOAD SERVICE CLASSIFICATION | C64: =+C61 -> Retail Transmission Rate – Line and Transformation Connection Service Rate | D64: $/kWh | E64: 0.005860737798 | F64: =+'10. RTSR - Current Rates'!I27 -> 11777578.99 | G64: 0 | H64: =IF(ISERROR(E64*F64), 0, ROUND(E64*F64, 2)) -> 69025.3 | I64: =H64/SUM(H$59:H$69) -> 0.002202225521 | J64: =I64*forecast_wholesale_LNPlus -> 71451.25531 | K64: =IF(ISERROR(J64/F64), 0, J64/F64) -> 0.006066718414
B65: STANDBY POWER SERVICE CLASSIFICATION
A66: SEN_TC | B66: SENTINEL LIGHTING | C66: Retail Transmission Rate – Line and Transformation Connection Service Rate | D66: $/kW | E66: =K38 -> 1.85253296 | F66: 0 | G66: =+'10. RTSR - Current Rates'!G29 -> 946.9101177 | H66: =IF(ISERROR(E66*G66), 0, ROUND(E66*G66, 2)) -> 1754.18 | I66: =H66/SUM(H$59:H$69) -> 5.596643497e-05 | J66: =I66*forecast_wholesale_LNPlus -> 1815.83221 | K66: =IF(ISERROR(J66/G66), 0, J66/G66) -> 1.917639463
A67: SL_TC | B67: STREET LIGHTING SERVICE CLASSIFICATION | C67: Retail Transmission Rate – Line and Transformation Connection Service Rate | D67: $/kW | E67: =K39 -> 1.806192688 | F67: 0 | G67: 87344.171 | H67: 157760.4 | I67: 0.005033284593 | J67: 163305.029 | K67: 1.869672894
